{"text_format":"1","workbook":"xlsx","n_sheets":11,"sheets":["Night ONE","Night ONE-option 2","NIGHT TWO","NIGHT THREE","Championship Night","GPI Ranking-Seeding","Team SB Donations","Teams","32 team Bracketology","# of games per night","Team # Match ups"],"not_rendered":{"charts":0,"images":0,"macros":1,"external_links":0,"defined_names":3,"comments":0,"pivot_tables":0},"unopened":[],"bounds":{"document_bytes":16777216,"sheet_cells":100000,"rows_first":2000,"rows_last":500,"rows_between":2000,"halvings":0,"cell_chars":16384,"cell_head_chars":4096},"cells_cut":0,"cells_raw":0,"read":"whole","date_system":"1900"}

{"sheet":"Night ONE","index":0,"n_rows":50,"n_cols":24,"rows_kept":50,"cut":false,"hidden":false,"merged":[[0,6,0,7]]}
["Night 1- ALL at Springdale",null,null,null,"  - Teams Play each team within their own Bracket",null,"Score",null,null,null,null,null,"RESULTS- Night One"]
["# games","time","Courts","Bracket","HOME","AWAY","W","L","Winner","Pt Diff",null,"Division","Teams","Win","Loss",null,"Team #","# of Games",null,"Bracket","NO BREAK","30 MIN","60 MIN","90 MIN"]
[1,"06:00:00","court 1","C1","SARC- Good Bumps, Nice Sets","SO- Team Kona",21,11,"SARC- Good Bumps, Nice Sets",{"$f":"G3-H3","v":10},null,"A","LKP- Air Vectors",{"$f":"COUNTIF(I$3:I$50,M3)","v":3},{"$f":"3-N3","v":0},null,1,3,null,"A",null,null,2]
[2,null,"court 2","C1","CT- Volley Llamas","CT- Concrete Feet",21,15,"CT- Concrete Feet",{"$f":"G4-H4","v":6},null,"A","SARC- $et for Life",{"$f":"COUNTIF(I$3:I$50,M4)","v":0},3,null,2,3,null,"B",null,1,1]
[3,null,"court 3","C2","LKP- Block You Like a Hurricane","HG- Swingrays",21,16,"LKP- Block You Like a Hurricane",5,null,"A","CT- Spikological Warfare",2,1,null,3,3,null,"C",null,1,1]
[4,null,"court 4","C2","GS- Sand Gators","GS- Setsual Healing",24,22,"GS- Setsual Healing",2,null,"A","SARC- Volleywood",1,2,null,4,3,null,"D",null,2]
[5,null,"court 5","B2","LKP- Casual Sets","LKP- Bumpn' Uglies",21,3,"LKP- Bumpn' Uglies",18,null,"A","LKP- Pass It Around",1,2,null,5,3,null,"E",null,1,1]
[6,null,"court 6","B2","NR- Hit That Thang","GS- 50 Shades of Greystone",21,18,"GS- 50 Shades of Greystone",3,null,"A","LKP- Will Play for Sets",1,2,null,6,3,null,"F",null,2]
[7,"06:30:00","court 1","A1","LKP- Air Vectors","SARC- $et for Life",21,13,"LKP- Air Vectors",8,null,"A","NR- Six Pack Attack",2,1,null,7,3,null,"G",null,null,2]
[8,null,"court 2","A1","CT- Spikological Warfare","SARC- Volleywood",21,11,"CT- Spikological Warfare",10,null,"A","SO- Kiss My Ace",2,1,null,8,3,null,"H",null,1,1]
[9,null,"court 3","D1","SARC- Unprotected Sets","SARC- Mizfits",21,2,"SARC- Unprotected Sets",19,null,"B","SARC- Raleigh Brawl",1,2,null,9,3]
[10,null,"court 4","D1","SARC- Here for Beer","SARC- Dirt Devils",21,16,"SARC- Here for Beer",5,null,"B","SARC- Sand Diggers",2,1,null,10,3]
[11,null,"court 5","B1","SARC- Raleigh Brawl","SARC- Sand Diggers",21,9,"SARC- Sand Diggers",12,null,"B","SARC- I'd Hit That",2,1,null,11,3]
[12,null,"court 6","B1","SARC- I'd Hit That","SARC- Notorious D.I.G.",21,14,"SARC- Notorious D.I.G.",7,null,"B","SARC- Notorious D.I.G.",1,2,null,12,3]
[13,"07:00:00","court 1","B2","LKP- Casual Sets","NR- Hit That Thang",21,14,"NR- Hit That Thang",7,null,"B","LKP- Casual Sets",1,2,null,13,3]
[14,null,"court 2","B2","LKP- Bumpn' Uglies","GS- 50 Shades of Greystone",21,7,"LKP- Bumpn' Uglies",14,null,"B","LKP- Bumpn' Uglies",3,0,null,14,3]
[15,null,"court 3","C1","SARC- Good Bumps, Nice Sets","CT- Volley Llamas",21,14,"SARC- Good Bumps, Nice Sets",7,null,"B","NR- Hit That Thang",1,2,null,15,3]
[16,null,"court 4","C1","SO- Team Kona","CT- Concrete Feet",21,17,"CT- Concrete Feet",4,null,"B","GS- 50 Shades of Greystone",1,2,null,16,3]
[17,null,"court 5","C2","LKP- Block You Like a Hurricane","GS- Sand Gators",21,15,"LKP- Block You Like a Hurricane",6,null,"C","SARC- Good Bumps, Nice Sets",3,0,null,17,3]
[18,null,"court 6","C2","HG- Swingrays","GS- Setsual Healing",21,11,"GS- Setsual Healing",10,null,"C","SO- Team Kona",0,3,null,18,3]
[19,"07:30:00","court 1","A2","LKP- Pass It Around","LKP- Will Play for Sets",21,15,"LKP- Will Play for Sets",6,null,"C","CT- Volley Llamas",1,2,null,19,3]
[20,null,"court 2","A2","NR- Six Pack Attack","SO- Kiss My Ace",21,18,"SO- Kiss My Ace",3,null,"C","CT- Concrete Feet",2,1,null,20,3]
[21,null,"court 3","B1","SARC- Raleigh Brawl","SARC- I'd Hit That",21,12,"SARC- I'd Hit That",9,null,"C","LKP- Block You Like a Hurricane",3,0,null,21,3]
[22,null,"court 4","B1","SARC- Sand Diggers","SARC- Notorious D.I.G.",21,12,"SARC- Sand Diggers",9,null,"C","HG- Swingrays",1,2,null,22,3]
[23,null,"court 5","D2","SARC- Sets on the Beach","SARC- Mojo Risin ",21,13,"SARC- Sets on the Beach",8,null,"C","GS- Sand Gators",0,3,null,23,3]
[24,null,"court 6","D2","GS- El Toro's Revenge","GS- Rhymes with Stupid",21,14,"GS- El Toro's Revenge",7,null,"C","GS- Setsual Healing",2,1,null,24,3]
[25,"08:00:00","court 1","A1","LKP- Air Vectors","CT- Spikological Warfare",21,19,"LKP- Air Vectors",2,null,"D","SARC- Unprotected Sets",3,0,null,25,3]
[26,null,"court 2","A1","SARC- $et for Life","SARC- Volleywood",21,13,"SARC- Volleywood",8,null,"D","SARC- Mizfits",2,1,null,26,3]
[27,null,"court 3","C2","GS- Setsual Healing","LKP- Block You Like a Hurricane",24,22,"LKP- Block You Like a Hurricane",2,null,"D","SARC- Here for Beer",1,2,null,27,3]
[28,null,"court 4","C2","HG- Swingrays","GS- Sand Gators",21,14,"HG- Swingrays",7,null,"D","SARC- Dirt Devils",0,3,null,28,3]
[29,null,"court 5","D1","SARC- Unprotected Sets","SARC- Here for Beer",21,4,"SARC- Unprotected Sets",17,null,"D","SARC- Sets on the Beach",2,1,null,29,3]
[30,null,"court 6","D1","SARC- Mizfits","SARC- Dirt Devils",21,6,"SARC- Mizfits",15,null,"D","SARC- Mojo Risin ",0,3,null,30,3]
[31,"08:30:00","court 1","B1","SARC- Notorious D.I.G.","SARC- Raleigh Brawl",21,7,"SARC- Raleigh Brawl",14,null,"D","GS- El Toro's Revenge",3,0,null,31,3]
[32,null,"court 2","B1","SARC- Sand Diggers","SARC- I'd Hit That",21,15,"SARC- I'd Hit That",6,null,"D","GS- Rhymes with Stupid",1,2,null,32,3]
[33,null,"court 3","B2","LKP- Bumpn' Uglies","NR- Hit That Thang",21,16,"LKP- Bumpn' Uglies",5]
[34,null,"court 4","B2","GS- 50 Shades of Greystone","LKP- Casual Sets",21,7,"LKP- Casual Sets",14]
[35,null,"court 5","C1","CT- Concrete Feet","SARC- Good Bumps, Nice Sets",22,20,"SARC- Good Bumps, Nice Sets",2]
[36,null,"court 6","C1","SO- Team Kona","CT- Volley Llamas",21,14,"CT- Volley Llamas",7]
[37,"09:00:00","court 1","A2","LKP- Will Play for Sets","SO- Kiss My Ace",21,19,"SO- Kiss My Ace",2]
[38,null,"court 2","A2","LKP- Pass It Around","NR- Six Pack Attack",21,15,"NR- Six Pack Attack",6]
[39,null,"court 3","D2","SARC- Sets on the Beach","GS- El Toro's Revenge",21,15,"GS- El Toro's Revenge",6]
[40,null,"court 4","D2","SARC- Mojo Risin ","GS- Rhymes with Stupid",21,19,"GS- Rhymes with Stupid",2]
[41,"09:30:00","court 1","D1","SARC- Dirt Devils","SARC- Unprotected Sets",21,13,"SARC- Unprotected Sets",8]
[42,null,"court 2","D1","SARC- Mizfits","SARC- Here for Beer",23,21,"SARC- Mizfits",2]
[43,null,"court 3","A1","SARC- Volleywood","LKP- Air Vectors",21,16,"LKP- Air Vectors",5]
[44,null,"court 4","A1","SARC- $et for Life","CT- Spikological Warfare",21,14,"CT- Spikological Warfare",7]
[45,"10:00:00","court 1","D2","GS- Rhymes with Stupid","SARC- Sets on the Beach",22,20,"SARC- Sets on the Beach",2]
[46,null,"court 2","D2","SARC- Mojo Risin ","GS- El Toro's Revenge",21,6,"GS- El Toro's Revenge",15]
[47,null,"court 3","A2","SO- Kiss My Ace","LKP- Pass It Around",21,18,"LKP- Pass It Around",3]
[48,null,"court 4","A2","LKP- Will Play for Sets","NR- Six Pack Attack",21,5,"NR- Six Pack Attack",16]

{"sheet":"Night ONE-option 2","index":1,"n_rows":50,"n_cols":14,"rows_kept":50,"cut":false,"hidden":true,"merged":[]}
["Night 1","ALL at Springdale"]
["# games","time","Courts",null,null,null,null,null,null,null,"NO BREAK","30 MIN","60 MIN","90 MIN"]
[1,"06:00:00","court 1","C",9,10,null,null,null,"A",null,1,1]
[2,null,"court 2","C",11,12,null,null,null,"B",null,1,1]
[3,null,"court 3","D",13,14,null,null,null,"C",null,1,1]
[4,null,"court 4","D",15,16,null,null,null,"D",null,1,1]
[5,null,"court 5","E",17,18,null,null,null,"E",null,1,1]
[6,null,"court 6","E",19,20,null,null,null,"F",null,null,1,1]
[7,"06:30:00","court 1","A",1,2,null,null,null,"G",null,1,1]
[8,null,"court 2","A",3,4,null,null,null,"H",null,1,1]
[9,null,"court 3","G",25,26]
[10,null,"court 4","G",27,28]
[11,null,"court 5","F",21,22]
[12,null,"court 6","F",21,23]
[13,"07:00:00","court 1","B",5,6]
[14,null,"court 2","B",7,8]
[15,null,"court 3","C",9,11]
[16,null,"court 4","C",10,12]
[17,null,"court 5","D",13,15]
[18,null,"court 6","D",14,16]
[19,"07:30:00","court 1","A",2,4]
[20,null,"court 2","A",1,3]
[21,null,"court 3","E",17,19]
[22,null,"court 4","E",18,20]
[23,null,"court 5","H",29,30]
[24,null,"court 6","H",31,32]
[25,"08:00:00","court 1","B",6,8]
[26,null,"court 2","B",5,7]
[27,null,"court 3","F",24,21]
[28,null,"court 4","F",23,24]
[29,null,"court 5","G",25,27]
[30,null,"court 6","G",26,28]
[31,"08:30:00","court 1","E",20,17]
[32,null,"court 2","E",18,19]
[33,null,"court 3","D",16,13]
[34,null,"court 4","D",14,15]
[35,null,"court 5","C",12,9]
[36,null,"court 6","C",10,11]
[37,"09:00:00","court 1","A",4,1]
[38,null,"court 2","A",2,3]
[39,null,"court 3","H",29,31]
[40,null,"court 4","H",30,32]
[41,"09:30:00","court 1","B",8,5]
[42,null,"court 2","B",6,7]
[43,null,"court 3","G",28,25]
[44,null,"court 4","G",26,27]
[45,"10:00:00","court 1","F",22,23]
[46,null,"court 2","F",22,24]
[47,null,"court 3","H",32,29]
[48,null,"court 4","H",30,31]

{"sheet":"NIGHT TWO","index":2,"n_rows":143,"n_cols":28,"rows_kept":143,"cut":false,"hidden":false,"merged":[[0,6,0,7],[43,6,43,7],[21,6,21,7],[63,6,63,7]]}
["Lake Park  A1 VS A2 Brackets  (A Division)",null,null,null,null,null,"Score",null,null,null,null,null,"RESULTS- After Night Two"]
[null,null,null,"Division","HOME","AWAY","W","L","Winner","Pt Diff",null,"Division","Teams","Win","Loss",null,null,null,"Teams on Lake Park",null,"Team","No Break","30 min","60 min",null,null,"ct 1","ct 3"]
[1,"06:00:00","court 1","A","SARC- $et for Life","LKP- Will Play for Sets",21,17,"LKP- Will Play for Sets",{"$f":"G3-H3","v":4},null,"A","LKP- Air Vectors",{"$f":"COUNTIF('Night ONE'!I$3:I$50,M3)+COUNTIF(I$3:I$85,M3)","v":4},{"$f":"7-N3","v":3},null,null,null,"SARC- $et for Life",null,1,null,3,null,null,1,2,2]
[2,null,"court 2","A","LKP- Air Vectors","LKP- Pass It Around",21,10,"LKP- Pass It Around",{"$f":"G4-H4","v":11},null,"A","SARC- $et for Life",{"$f":"COUNTIF('Night ONE'!I$3:I$50,M4)+COUNTIF(I$3:I$85,M4)","v":1},6,null,null,null,"LKP- Air Vectors",null,2,null,3,null,null,2,2,2]
[3,"06:30:00","court 1","A","SARC- Volleywood","SO- Kiss My Ace",21,13,"SARC- Volleywood",8,null,"A","CT- Spikological Warfare",{"$f":"COUNTIF('Night ONE'!I$3:I$50,M5)+COUNTIF(I$3:I$85,M5)","v":4},3,null,null,null,"SARC- Volleywood",null,3,null,3,null,null,3,2,2]
[4,null,"court 2","A","CT- Spikological Warfare","NR- Six Pack Attack",21,18,"CT- Spikological Warfare",3,null,"A","SARC- Volleywood",{"$f":"COUNTIF('Night ONE'!I$3:I$50,M6)+COUNTIF(I$3:I$85,M6)","v":3},4,null,null,null,"CT- Spikological Warfare",null,4,null,3,null,null,4,2,2]
[5,"07:00:00","court 1","A","SARC- $et for Life","LKP- Pass It Around",21,15,"LKP- Pass It Around",6,null,"A","LKP- Pass It Around",{"$f":"COUNTIF('Night ONE'!I$3:I$50,M7)+COUNTIF(I$3:I$85,M7)","v":4},3,null,null,null,"LKP- Will Play for Sets",null,5,null,2,1,null,5,2,2]
[6,null,"court 2","A","LKP- Air Vectors","LKP- Will Play for Sets",21,7,"LKP- Will Play for Sets",14,null,"A","LKP- Will Play for Sets",{"$f":"COUNTIF('Night ONE'!I$3:I$50,M8)+COUNTIF(I$3:I$85,M8)","v":5},2,null,null,null,"LKP- Pass It Around",null,6,null,2,1,null,6,2,2]
[7,"07:30:00","court 1","A","SARC- Volleywood","NR- Six Pack Attack",21,14,"SARC- Volleywood",7,null,"A","NR- Six Pack Attack",{"$f":"COUNTIF('Night ONE'!I$3:I$50,M9)+COUNTIF(I$3:I$85,M9)","v":3},4,null,null,null,"SO- Kiss My Ace",null,7,1,2,null,null,7,2,2]
[8,null,"court 2","A","CT- Spikological Warfare","SO- Kiss My Ace",21,18,"SO- Kiss My Ace",3,null,"A","SO- Kiss My Ace",{"$f":"COUNTIF('Night ONE'!I$3:I$50,M10)+COUNTIF(I$3:I$85,M10)","v":4},3,null,null,null,"NR- Six Pack Attack",null,8,1,2,null,null,8,2,2]
[9,"08:00:00","court 1","A","NR- Six Pack Attack","LKP- Air Vectors",21,14,"NR- Six Pack Attack",7,null,"B","SARC- Raleigh Brawl",{"$f":"COUNTIF('Night ONE'!I$3:I$50,M11)+COUNTIF(I$3:I$85,M11)","v":1},6,null,null,null,null,null,null,null,null,null,null,null,{"$f":"SUM(AA3:AA10)","v":16},{"$f":"SUM(AB3:AB10)","v":16}]
[10,null,"court 2","A","SO- Kiss My Ace","SARC- $et for Life",23,21,"SO- Kiss My Ace",2,null,"B","SARC- Sand Diggers",{"$f":"COUNTIF('Night ONE'!I$3:I$50,M12)+COUNTIF(I$3:I$85,M12)","v":5},2]
[11,"08:30:00","court 1","A","LKP- Pass It Around","CT- Spikological Warfare",21,15,"CT- Spikological Warfare",6,null,"B","SARC- I'd Hit That",{"$f":"COUNTIF('Night ONE'!I$3:I$50,M13)+COUNTIF(I$3:I$85,M13)","v":4},3]
[12,null,"court 2","A","LKP- Will Play for Sets","SARC- Volleywood",21,11,"LKP- Will Play for Sets",10,null,"B","SARC- Notorious D.I.G.",{"$f":"COUNTIF('Night ONE'!I$3:I$50,M14)+COUNTIF(I$3:I$85,M14)","v":2},5]
[13,"09:00:00","court 1","A","SO- Kiss My Ace","LKP- Air Vectors",21,11,"LKP- Air Vectors",10,null,"B","LKP- Casual Sets",{"$f":"COUNTIF('Night ONE'!I$3:I$50,M15)+COUNTIF(I$3:I$85,M15)","v":3},4]
[14,null,"court 2","A","NR- Six Pack Attack","SARC- $et for Life",21,7,"SARC- $et for Life",14,null,"B","LKP- Bumpn' Uglies",{"$f":"COUNTIF('Night ONE'!I$3:I$50,M16)+COUNTIF(I$3:I$85,M16)","v":7},0]
[15,"09:30:00","court 1","A","LKP- Will Play for Sets","CT- Spikological Warfare",21,7,"LKP- Will Play for Sets",14,null,"B","NR- Hit That Thang",{"$f":"COUNTIF('Night ONE'!I$3:I$50,M17)+COUNTIF(I$3:I$85,M17)","v":3},4]
[16,null,"court 2","A","LKP- Pass It Around","SARC- Volleywood",21,15,"LKP- Pass It Around",6,null,"B","GS- 50 Shades of Greystone",{"$f":"COUNTIF('Night ONE'!I$3:I$50,M18)+COUNTIF(I$3:I$85,M18)","v":3},4]
[null,null,null,null,null,null,null,null,null,null,null,"C","SARC- Good Bumps, Nice Sets",{"$f":"COUNTIF('Night ONE'!I$3:I$50,M19)+COUNTIF(I$3:I$85,M19)","v":5},2]
[null,null,null,null,null,null,null,null,null,null,null,"C","SO- Team Kona",{"$f":"COUNTIF('Night ONE'!I$3:I$50,M20)+COUNTIF(I$3:I$85,M20)","v":0},7]
[null,null,null,null,null,null,null,null,null,null,null,"C","CT- Volley Llamas",{"$f":"COUNTIF('Night ONE'!I$3:I$50,M21)+COUNTIF(I$3:I$85,M21)","v":3},4]
["SARC Red-  B1 vs B2 Brackets  (B Division)",null,null,null,null,null,"Score",null,null,null,null,"C","CT- Concrete Feet",{"$f":"COUNTIF('Night ONE'!I$3:I$50,M22)+COUNTIF(I$3:I$85,M22)","v":2},5]
[null,null,null,"Division","HOME","AWAY","W","L","Winner","Pt Diff",null,"C","LKP- Block You Like a Hurricane",{"$f":"COUNTIF('Night ONE'!I$3:I$50,M23)+COUNTIF(I$3:I$85,M23)","v":5},2,null,null,null,"Teams on SARC Blue Courts"]
[5,"06:00:00","court 1","B","SARC- Sand Diggers","LKP- Casual Sets",21,13,"SARC- Sand Diggers",{"$f":"G24-H24","v":8},null,"C","HG- Swingrays",{"$f":"COUNTIF('Night ONE'!I$3:I$50,M24)+COUNTIF(I$3:I$85,M24)","v":3},4,null,null,null,"SARC- Sand Diggers"]
[6,null,"court 2","B","SARC- Raleigh Brawl","LKP- Bumpn' Uglies",21,17,"LKP- Bumpn' Uglies",{"$f":"G25-H25","v":4},null,"C","GS- Sand Gators",{"$f":"COUNTIF('Night ONE'!I$3:I$50,M25)+COUNTIF(I$3:I$85,M25)","v":4},3,null,null,null,"SARC- Raleigh Brawl"]
[7,"06:30:00","court 1","B","SARC- Notorious D.I.G.","NR- Hit That Thang",21,7,"NR- Hit That Thang",14,null,"C","GS- Setsual Healing",{"$f":"COUNTIF('Night ONE'!I$3:I$50,M26)+COUNTIF(I$3:I$85,M26)","v":6},1,null,null,null,"SARC- Notorious D.I.G."]
[8,null,"court 2","B","SARC- I'd Hit That","GS- 50 Shades of Greystone",21,16,"GS- 50 Shades of Greystone",5,null,"D","SARC- Unprotected Sets",{"$f":"COUNTIF('Night ONE'!I$3:I$50,M27)+COUNTIF(I$3:I$85,M27)","v":6},1,null,null,null,"SARC- I'd Hit That"]
[9,"07:00:00","court 1","B","NR- Hit That Thang","SARC- Raleigh Brawl",21,12,"NR- Hit That Thang",9,null,"D","SARC- Mizfits",{"$f":"COUNTIF('Night ONE'!I$3:I$50,M28)+COUNTIF(I$3:I$85,M28)","v":3},4,null,null,null,"LKP- Bumpn' Uglies"]
[10,null,"court 2","B","GS- 50 Shades of Greystone","SARC- Sand Diggers",21,13,"SARC- Sand Diggers",8,null,"D","SARC- Here for Beer",{"$f":"COUNTIF('Night ONE'!I$3:I$50,M29)+COUNTIF(I$3:I$85,M29)","v":2},5,null,null,null,"LKP- Casual Sets"," GS-50 Shades of Greystone"]
[11,"07:30:00","court 1","B","LKP- Casual Sets","SARC- I'd Hit That",21,12,"SARC- I'd Hit That",9,null,"D","SARC- Dirt Devils",{"$f":"COUNTIF('Night ONE'!I$3:I$50,M30)+COUNTIF(I$3:I$85,M30)","v":1},6,null,null,null,"GS- 50 Shades of Greystone"]
[12,null,"court 2","B","LKP- Bumpn' Uglies","SARC- Notorious D.I.G.",21,3,"LKP- Bumpn' Uglies",18,null,"D","SARC- Sets on the Beach",{"$f":"COUNTIF('Night ONE'!I$3:I$50,M31)+COUNTIF(I$3:I$85,M31)","v":4},3,null,null,null,"NR- Hit That Thang"]
[null,"20:00:00","court 1","Sponsor","Sponsor A    ","Sponsor C",null,null,null,0,null,"D","SARC- Mojo Risin ",{"$f":"COUNTIF('Night ONE'!I$3:I$50,M32)+COUNTIF(I$3:I$85,M32)","v":1},6]
[null,null,"court 2","Sponsor","Sponsor B  ","Sponsor D",null,null,null,0,null,"D","GS- El Toro's Revenge",{"$f":"COUNTIF('Night ONE'!I$3:I$50,M33)+COUNTIF(I$3:I$85,M33)","v":7},0]
[13,"08:30:00","court 3","B","GS- 50 Shades of Greystone","SARC- Raleigh Brawl",21,10,"GS- 50 Shades of Greystone",11,null,"D","GS- Rhymes with Stupid",{"$f":"COUNTIF('Night ONE'!I$3:I$50,M34)+COUNTIF(I$3:I$85,M34)","v":4},3]
[14,null,"court 4","B","NR- Hit That Thang","SARC- Sand Diggers",21,19,"SARC- Sand Diggers",2]
[15,"09:00:00","court 3","B","LKP- Bumpn' Uglies","SARC- I'd Hit That",21,9,"LKP- Bumpn' Uglies",12]
[16,null,"court 4","B","LKP- Casual Sets","SARC- Notorious D.I.G.",21,6,"LKP- Casual Sets",15]
[1,"09:30:00","court 3","B","SARC- Sand Diggers","LKP- Bumpn' Uglies",21,17,"LKP- Bumpn' Uglies",4]
[2,null,"court 4","B","SARC- Raleigh Brawl","LKP- Casual Sets",21,17,"LKP- Casual Sets",4]
[3,"10:00:00","court 3","B","SARC- Notorious D.I.G.","GS- 50 Shades of Greystone",21,19,"SARC- Notorious D.I.G.",2]
[4,null,"court 4","B","SARC- I'd Hit That","NR- Hit That Thang",21,16,"SARC- I'd Hit That",5]
[]
[]
["Greystone-  C1 vs C2 Brackets  (C Division)",null,null,null,null,null,"Score"]
[null,null,null,"Division","HOME","AWAY","W","L","Winner","Pt Diff",null,null,null,null,null,null,null,null,"Teams at Greystone"]
[1,"06:00:00","court 1","C","SO- Team Kona","HG- Swingrays",21,10,"HG- Swingrays",{"$f":"G46-H46","v":11},null,null,null,null,null,null,null,null,"SO- Team Kona"]
[2,null,"court 2","C","SARC- Good Bumps, Nice Sets","LKP- Block You Like a Hurricane",23,21,"SARC- Good Bumps, Nice Sets",{"$f":"G47-H47","v":2},null,null,null,null,null,null,null,null,"SARC- Good Bumps, Nice Sets"]
[3,"06:30:00","court 1","C","CT- Concrete Feet","GS- Setsual Healing",21,8,"GS- Setsual Healing",13,null,null,null,null,null,null,null,null,"CT- Concrete Feet"]
[4,null,"court 2","C","CT- Volley Llamas","GS- Sand Gators",21,8,"GS- Sand Gators",13,null,null,null,null,null,null,null,null,"CT- Volley Llamas"]
[5,"07:00:00","court 1","C","SO- Team Kona","LKP- Block You Like a Hurricane",21,12,"LKP- Block You Like a Hurricane",9,null,null,null,null,null,null,null,null,"HG- Swingrays"]
[6,null,"court 2","C","SARC- Good Bumps, Nice Sets","HG- Swingrays",21,18,"SARC- Good Bumps, Nice Sets",3,null,null,null,null,null,null,null,null,"LKP- Block You Like a Hurricane"]
[7,"07:30:00","court 1","C","CT- Concrete Feet","GS- Sand Gators",21,5,"GS- Sand Gators",16,null,null,null,null,null,null,null,null,"GS- Setsual Healing"]
[8,null,"court 2","C","CT- Volley Llamas","GS- Setsual Healing",21,10,"GS- Setsual Healing",11,null,null,null,null,null,null,null,null,"GS- Sand Gators"]
[9,"08:00:00","court 1","C","GS- Sand Gators","SARC- Good Bumps, Nice Sets",21,14,"GS- Sand Gators",7]
[10,null,"court 2","C","GS- Setsual Healing","SO- Team Kona",21,9,"GS- Setsual Healing",12]
[11,"08:30:00","court 1","C","LKP- Block You Like a Hurricane","CT- Volley Llamas",22,20,"CT- Volley Llamas",2]
[12,null,"court 2","C","HG- Swingrays","CT- Concrete Feet",21,13,"HG- Swingrays",8]
[13,"09:00:00","court 1","C","GS- Setsual Healing","SARC- Good Bumps, Nice Sets",21,6,"GS- Setsual Healing",15]
[14,null,"court 2","C","GS- Sand Gators","SO- Team Kona",21,10,"GS- Sand Gators",11]
[15,"09:30:00","court 1","C","HG- Swingrays","CT- Volley Llamas",21,18,"CT- Volley Llamas",3]
[16,null,"court 2","C","LKP- Block You Like a Hurricane","CT- Concrete Feet",21,17,"LKP- Block You Like a Hurricane",4]
[]
[]
["SARC Blue-   D1 vs D2  Brackets  (D Division)",null,null,null,null,null,"Score"]
[null,null,null,"Division","HOME","AWAY","W","L","Winner","Pt Diff",null,null,null,null,null,null,null,null,"Teams at SARC"]
[3,"06:00:00","court 3","D ","SARC- Dirt Devils","GS- Rhymes with Stupid",21,16,"GS- Rhymes with Stupid",{"$f":"G66-H66","v":5},null,null,null,null,null,null,null,null,"SARC- Mizfits"]
[4,null,"court 4","D ","SARC- Here for Beer","GS- El Toro's Revenge",21,5,"GS- El Toro's Revenge",16,null,null,null,null,null,null,null,null,"SARC- Unprotected Sets"]
[1,"06:30:00","court 3","D ","SARC- Mizfits","SARC- Mojo Risin ",21,18,"SARC- Mojo Risin ",3,null,null,null,null,null,null,null,null,"SARC- Dirt Devils"]
[2,null,"court 4","D ","SARC- Unprotected Sets","SARC- Sets on the Beach",21,18,"SARC- Unprotected Sets",3,null,null,null,null,null,null,null,null,"SARC- Here for Beer"]
[7,"07:00:00","court 3","D ","SARC- Dirt Devils","GS- El Toro's Revenge",21,6,"GS- El Toro's Revenge",15,null,null,null,null,null,null,null,null,"SARC- Mojo Risin "]
[8,null,"court 4","D ","SARC- Here for Beer","GS- Rhymes with Stupid",21,17,"GS- Rhymes with Stupid",4,null,null,null,null,null,null,null,null,"SARC- Sets on the Beach"]
[5,"07:30:00","court 3","D ","SARC- Mizfits","SARC- Sets on the Beach",21,10,"SARC- Mizfits",11,null,null,null,null,null,null,null,null,"GS- Rhymes with Stupid"]
[6,null,"court 4","D ","SARC- Unprotected Sets","SARC- Mojo Risin ",21,11,"SARC- Unprotected Sets",10,null,null,null,null,null,null,null,null,"GS- El Toro's Revenge"]
[11,"08:00:00","court 3","D ","SARC- Sets on the Beach","SARC- Here for Beer",21,13,"SARC- Sets on the Beach",8]
[12,null,"court 4","D ","SARC- Mojo Risin ","SARC- Dirt Devils",21,7,"SARC- Dirt Devils",14]
[9,"08:30:00","court 1","D ","GS- El Toro's Revenge","SARC- Unprotected Sets",21,18,"GS- El Toro's Revenge",3]
[10,null,"court 2","D ","GS- Rhymes with Stupid","SARC- Mizfits",21,10,"GS- Rhymes with Stupid",11]
[null,"21:00:00","court 1","Sponsor","Sponsor A    ","Sponsor D",null,null,null,0]
[null,null,"court 2","Sponsor","Sponsor B  ","Sponsor C",null,null,null,0]
[15,"09:30:00","court 1","D ","SARC- Mojo Risin ","SARC- Here for Beer",21,12,"SARC- Here for Beer",9]
[16,null,"court 2","D ","SARC- Sets on the Beach","SARC- Dirt Devils",21,14,"SARC- Sets on the Beach",7]
[13,"10:00:00","court 1","D ","GS- Rhymes with Stupid","SARC- Unprotected Sets",21,17,"SARC- Unprotected Sets",4]
[14,null,"court 2","D ","GS- El Toro's Revenge","SARC- Mizfits",21,16,"GS- El Toro's Revenge",5]
[]
[]
[]
[]
["SPONSOR TOURNAMENT"]
["19:00:00",null,"GRASS   CT 5",null,"PF Changs","Air Force 9"]
[null,null,"GRASS   CT 6",null,"Mosquito Joes","Sponsor That"]
[]
[]
["20:00:00",null,"court 1",null,"Sponsor That","PF Changs"]
[null,null,"court 2",null,"Air Force 9","Mosquito Joes"]
[]
[]
["21:00:00",null,"court 1",null,"PF Changs","Mosquito Joes"]
[null,null,"court 2",null,"Air Force 9","Sponsor That"]
[]
[]
[]
[]
["Springdale Week 2- Combined Schedule"]
[]
[null,null,null,"Division","HOME","AWAY","W","L","Winner","Pt Diff"]
[null,"06:00:00","court 1","B","SARC- Sand Diggers","LKP- Casual Sets"]
[null,null,"court 2","B","SARC- Raleigh Brawl","LKP- Bumpn' Uglies"]
[null,"06:00:00","court 3","D ","SARC- Dirt Devils","GS- Rhymes with Stupid"]
[null,null,"court 4","D ","SARC- Here for Beer","GS- El Toro's Revenge"]
[null,"06:30:00","court 1","B","SARC- Notorious D.I.G.","NR- Hit That Thang"]
[null,null,"court 2","B","SARC- I'd Hit That","GS- 50 Shades of Greystone"]
[null,"06:30:00","court 3","D ","SARC- Mizfits","SARC- Mojo Risin "]
[null,null,"court 4","D ","SARC- Unprotected Sets","SARC- Sets on the Beach"]
[null,"07:00:00","court 1","B","NR- Hit That Thang","SARC- Raleigh Brawl"]
[null,null,"court 2","B","GS- 50 Shades of Greystone","SARC- Sand Diggers"]
[null,"07:00:00","court 3","D ","SARC- Dirt Devils","GS- El Toro's Revenge"]
[null,null,"court 4","D ","SARC- Here for Beer","GS- Rhymes with Stupid"]
[null,"19:00:00","GRASS   CT 5","Sponsor","PF Changs","Air Force 9"]
[null,null,"GRASS   CT 6","Sponsor","Mosquito Joes","Sponsor That"]
[null,"07:30:00","court 1","B","LKP- Casual Sets","SARC- I'd Hit That"]
[null,null,"court 2","B","LKP- Bumpn' Uglies","SARC- Notorious D.I.G."]
[null,"07:30:00","court 3","D ","SARC- Mizfits","SARC- Sets on the Beach"]
[null,null,"court 4","D ","SARC- Unprotected Sets","SARC- Mojo Risin "]
[null,"20:00:00","court 1","Sponsor","Sponsor That","PF Changs"]
[null,null,"court 2","Sponsor","Air Force 9","Mosquito Joes"]
[null,"08:00:00","court 3","D ","SARC- Sets on the Beach","SARC- Here for Beer"]
[null,null,"court 4","D ","SARC- Mojo Risin ","SARC- Dirt Devils"]
[null,"08:30:00","court 1","D ","GS- El Toro's Revenge","SARC- Unprotected Sets"]
[null,null,"court 2","D ","GS- Rhymes with Stupid","SARC- Mizfits"]
[null,"08:30:00","court 3","B","GS- 50 Shades of Greystone","SARC- Raleigh Brawl"]
[null,null,"court 4","B","NR- Hit That Thang","SARC- Sand Diggers"]
[null,"21:00:00","court 1","Sponsor","PF Changs","Mosquito Joes"]
[null,null,"court 2","Sponsor","Air Force 9","Sponsor That"]
[null,"09:00:00","court 3","B","LKP- Bumpn' Uglies","SARC- I'd Hit That"]
[null,null,"court 4","B","LKP- Casual Sets","SARC- Notorious D.I.G."]
[null,"09:30:00","court 1","D ","SARC- Mojo Risin ","SARC- Here for Beer"]
[null,null,"court 2","D ","SARC- Sets on the Beach","SARC- Dirt Devils"]
[null,"09:30:00","court 3","B","SARC- Sand Diggers","LKP- Bumpn' Uglies"]
[null,null,"court 4","B","SARC- Raleigh Brawl","LKP- Casual Sets"]
[null,"10:00:00","court 1","D ","GS- Rhymes with Stupid","SARC- Unprotected Sets"]
[null,null,"court 2","D ","GS- El Toro's Revenge","SARC- Mizfits"]
[null,"10:00:00","court 3","B","SARC- Notorious D.I.G.","GS- 50 Shades of Greystone"]
[null,null,"court 4","B","SARC- I'd Hit That","NR- Hit That Thang"]

{"sheet":"NIGHT THREE","index":3,"n_rows":81,"n_cols":31,"rows_kept":81,"cut":false,"hidden":false,"merged":[[0,6,0,7],[21,6,21,7],[63,6,63,7],[42,6,42,7]]}
["SARC Red-   1st Vertical Bracket Cross-section of Divisions",null,null,null,null,null,"Score",null,null,null,null,null,"RESULTS- After Night Three"]
[null,null,null,null,"HOME","AWAY","W","L","Winner","Pt Diff",null,"Division","Teams","Win","Loss",".","PT DIFF",null,"Teams on SARC Red Courts",null,null,null,null,"Team","No Break","30 min","60 min",null,null,"ct 1","ct 2"]
[1,"06:00:00","court 1",null,"SARC- Raleigh Brawl","SARC- Good Bumps, Nice Sets",21,15,"SARC- Raleigh Brawl",{"$f":"G3-H3","v":6},null,"A","LKP- Air Vectors",{"$f":"COUNTIF('Night ONE'!I$3:I$50,M3)+COUNTIF('NIGHT TWO'!I$3:I$85,M3)+COUNTIF(I$3:I$81,M3)","v":7},{"$f":"11-N3","v":4},null,7,null,"SARC- Raleigh Brawl",null,null,null,null,1,1,null,2,null,1,2,2]
[2,null,"court 3",null,"SARC- Mizfits","SARC- $et for Life",21,1,"SARC- $et for Life",{"$f":"G4-H4","v":20},null,"A","SARC- $et for Life",{"$f":"COUNTIF('Night ONE'!I$3:I$50,M4)+COUNTIF('NIGHT TWO'!I$3:I$85,M4)+COUNTIF(I$3:I$81,M4)","v":5},6,null,27,null,"SARC- Unprotected Sets",null,null,null,null,2,1,1,1,null,2,2,2]
[3,"06:30:00","court 1",null,"SARC- Unprotected Sets","SO- Team Kona",21,15,"SARC- Unprotected Sets",6,null,"A","CT- Spikological Warfare",{"$f":"COUNTIF('Night ONE'!I$3:I$50,M5)+COUNTIF('NIGHT TWO'!I$3:I$85,M5)+COUNTIF(I$3:I$81,M5)","v":8},3,null,52,null,"SARC- Sand Diggers",null,null,null,null,9,1,2,null,null,9,2,2]
[4,null,"court 3",null,"LKP- Air Vectors","SARC- Raleigh Brawl",21,17,"LKP- Air Vectors",4,null,"A","SARC- Volleywood",{"$f":"COUNTIF('Night ONE'!I$3:I$50,M6)+COUNTIF('NIGHT TWO'!I$3:I$85,M6)+COUNTIF(I$3:I$81,M6)","v":7},4,null,33,null,"SARC- Mizfits",null,null,null,null,10,1,1,1,null,10,2,2]
[5,"07:00:00","court 1",null,"SARC- $et for Life","SARC- Sand Diggers",21,16,"SARC- $et for Life",5,null,"A","LKP- Pass It Around",{"$f":"COUNTIF('Night ONE'!I$3:I$50,M7)+COUNTIF('NIGHT TWO'!I$3:I$85,M7)+COUNTIF(I$3:I$81,M7)","v":8},3,null,53,null,"SARC- Good Bumps, Nice Sets",null,null,null,null,17,1,1,1,null,17,2,2]
[6,null,"court 3",null,"SARC- Good Bumps, Nice Sets","SARC- Unprotected Sets",23,21,"SARC- Good Bumps, Nice Sets",2,null,"A","LKP- Will Play for Sets",{"$f":"COUNTIF('Night ONE'!I$3:I$50,M8)+COUNTIF('NIGHT TWO'!I$3:I$85,M8)+COUNTIF(I$3:I$81,M8)","v":9},2,null,71,null,"LKP- Air Vectors",null,null,null,null,18,null,3,null,null,18,2,2]
[7,"07:30:00","court 1",null,"SO- Team Kona","SARC- Mizfits",21,14,"SO- Team Kona",7,null,"A","NR- Six Pack Attack",{"$f":"COUNTIF('Night ONE'!I$3:I$50,M9)+COUNTIF('NIGHT TWO'!I$3:I$85,M9)+COUNTIF(I$3:I$81,M9)","v":7},{"$f":"11-N9","v":4},null,45,null,"SO- Team Kona",null,null,null,null,25,1,2,null,null,25,2,2]
[8,null,"court 3",null,"LKP- Air Vectors","SARC- Good Bumps, Nice Sets",21,12,"LKP- Air Vectors",9,null,"A","SO- Kiss My Ace",{"$f":"COUNTIF('Night ONE'!I$3:I$50,M10)+COUNTIF('NIGHT TWO'!I$3:I$85,M10)+COUNTIF(I$3:I$81,M10)","v":7},4,null,16,null,"SARC- $et for Life",null,null,null,null,26,null,3,null,null,26,2,2]
[9,"08:00:00","court 1",null,"SARC- Raleigh Brawl","SARC- $et for Life",21,13,"SARC- $et for Life",8,null,"B","SARC- Raleigh Brawl",{"$f":"COUNTIF('Night ONE'!I$3:I$50,M11)+COUNTIF('NIGHT TWO'!I$3:I$85,M11)+COUNTIF(I$3:I$81,M11)","v":3},8,null,-32,null,null,null,null,null,null,null,null,null,null,null,null,{"$f":"SUM(AD3:AD10)","v":16},{"$f":"SUM(AE3:AE10)","v":16}]
[10,null,"court 3",null,"SARC- Sand Diggers","SARC- Mizfits",21,4,"SARC- Sand Diggers",17,null,"B","SARC- Sand Diggers",{"$f":"COUNTIF('Night ONE'!I$3:I$50,M12)+COUNTIF('NIGHT TWO'!I$3:I$85,M12)+COUNTIF(I$3:I$81,M12)","v":7},4,null,49]
[11,"08:30:00","court 1",null,"SARC- Unprotected Sets","LKP- Air Vectors",22,20,"SARC- Unprotected Sets",2,null,"B","SARC- I'd Hit That",{"$f":"COUNTIF('Night ONE'!I$3:I$50,M13)+COUNTIF('NIGHT TWO'!I$3:I$85,M13)+COUNTIF(I$3:I$81,M13)","v":6},5,null,-1]
[12,null,"court 3",null,"SARC- Sand Diggers","SO- Team Kona",21,10,"SARC- Sand Diggers",11,null,"B","SARC- Notorious D.I.G.",{"$f":"COUNTIF('Night ONE'!I$3:I$50,M14)+COUNTIF('NIGHT TWO'!I$3:I$85,M14)+COUNTIF(I$3:I$81,M14)","v":4},7,null,-57]
[13,"09:00:00","court 1",null,"SARC- Good Bumps, Nice Sets","SARC- Mizfits",21,5,"SARC- Good Bumps, Nice Sets",16,null,"B","LKP- Casual Sets",{"$f":"COUNTIF('Night ONE'!I$3:I$50,M15)+COUNTIF('NIGHT TWO'!I$3:I$85,M15)+COUNTIF(I$3:I$81,M15)","v":4},7,null,-23]
[14,null,"court 3",null,"SARC- $et for Life","SO- Team Kona",21,6,"SARC- $et for Life",15,null,"B","LKP- Bumpn' Uglies",{"$f":"COUNTIF('Night ONE'!I$3:I$50,M16)+COUNTIF('NIGHT TWO'!I$3:I$85,M16)+COUNTIF(I$3:I$81,M16)","v":9},2,null,87]
[15,"09:30:00","court 1",null,"LKP- Air Vectors","SARC- Sand Diggers",21,18,"LKP- Air Vectors",3,null,"B","NR- Hit That Thang",{"$f":"COUNTIF('Night ONE'!I$3:I$50,M17)+COUNTIF('NIGHT TWO'!I$3:I$85,M17)+COUNTIF(I$3:I$81,M17)","v":3},8,null,-28]
[16,null,"court 3",null,"SARC- Raleigh Brawl","SARC- Unprotected Sets",21,12,"SARC- Raleigh Brawl",9,null,"B","GS- 50 Shades of Greystone",{"$f":"COUNTIF('Night ONE'!I$3:I$50,M18)+COUNTIF('NIGHT TWO'!I$3:I$85,M18)+COUNTIF(I$3:I$81,M18)","v":3},8,null,-61]
[null,null,null,null,null,null,null,null,null,null,null,"C","SARC- Good Bumps, Nice Sets",{"$f":"COUNTIF('Night ONE'!I$3:I$50,M19)+COUNTIF('NIGHT TWO'!I$3:I$85,M19)+COUNTIF(I$3:I$81,M19)","v":7},4,null,5]
[null,null,null,null,null,null,null,null,null,null,null,"C","SO- Team Kona",{"$f":"COUNTIF('Night ONE'!I$3:I$50,M20)+COUNTIF('NIGHT TWO'!I$3:I$85,M20)+COUNTIF(I$3:I$81,M20)","v":1},10,null,-89]
[null,null,null,null,null,null,null,null,null,null,null,"C","CT- Volley Llamas",{"$f":"COUNTIF('Night ONE'!I$3:I$50,M21)+COUNTIF('NIGHT TWO'!I$3:I$85,M21)+COUNTIF(I$3:I$81,M21)","v":5},6,null,-29]
["SARC Blue-   2nd Vertical Bracket Cross-section of Divisions",null,null,null,null,null,"Score",null,null,null,null,"C","CT- Concrete Feet",{"$f":"COUNTIF('Night ONE'!I$3:I$50,M22)+COUNTIF('NIGHT TWO'!I$3:I$85,M22)+COUNTIF(I$3:I$81,M22)","v":4},7,null,-36]
[null,null,null,null,"HOME","AWAY","W","L","Winner","Pt Diff",null,"C","LKP- Block You Like a Hurricane",{"$f":"COUNTIF('Night ONE'!I$3:I$50,M23)+COUNTIF('NIGHT TWO'!I$3:I$85,M23)+COUNTIF(I$3:I$81,M23)","v":8},3,null,24,null,"Teams on SARC Blue Courts"]
[1,"06:00:00","court 2",null,"SARC- I'd Hit That","CT- Volley Llamas",21,17,"SARC- I'd Hit That",{"$f":"G24-H24","v":4},null,"C","HG- Swingrays",{"$f":"COUNTIF('Night ONE'!I$3:I$50,M24)+COUNTIF('NIGHT TWO'!I$3:I$85,M24)+COUNTIF(I$3:I$81,M24)","v":4},7,null,0,null,"SARC- I'd Hit That"]
[2,null,"court 4",null,"SARC- Dirt Devils","SARC- Volleywood",21,7,"SARC- Volleywood",{"$f":"G25-H25","v":14},null,"C","GS- Sand Gators",{"$f":"COUNTIF('Night ONE'!I$3:I$50,M25)+COUNTIF('NIGHT TWO'!I$3:I$85,M25)+COUNTIF(I$3:I$81,M25)","v":7},4,null,52,null,"SARC- Here for Beer"]
[3,"06:30:00","court 2",null,"SARC- Here for Beer","CT- Concrete Feet",21,15,"CT- Concrete Feet",6,null,"C","GS- Setsual Healing",{"$f":"COUNTIF('Night ONE'!I$3:I$50,M26)+COUNTIF('NIGHT TWO'!I$3:I$85,M26)+COUNTIF(I$3:I$81,M26)","v":10},1,null,107,null,"SARC- Notorious D.I.G."]
[4,null,"court 4",null,"CT- Spikological Warfare","SARC- I'd Hit That",21,13,"CT- Spikological Warfare",8,null,"D","SARC- Unprotected Sets",{"$f":"COUNTIF('Night ONE'!I$3:I$50,M27)+COUNTIF('NIGHT TWO'!I$3:I$85,M27)+COUNTIF(I$3:I$81,M27)","v":8},3,null,55,null,"SARC- Dirt Devils"]
[5,"07:00:00","court 2",null,"SARC- Volleywood","SARC- Notorious D.I.G.",21,12,"SARC- Volleywood",9,null,"D","SARC- Mizfits",{"$f":"COUNTIF('Night ONE'!I$3:I$50,M28)+COUNTIF('NIGHT TWO'!I$3:I$85,M28)+COUNTIF(I$3:I$81,M28)","v":3},8,null,-70,null,"CT- Volley Llamas"]
[6,null,"court 4",null,"CT- Volley Llamas","SARC- Here for Beer",21,12,"CT- Volley Llamas",9,null,"D","SARC- Here for Beer",{"$f":"COUNTIF('Night ONE'!I$3:I$50,M29)+COUNTIF('NIGHT TWO'!I$3:I$85,M29)+COUNTIF(I$3:I$81,M29)","v":2},9,null,-68,null,"CT- Spikological Warfare"," GS-50 Shades of Greystone"]
[7,"07:30:00","court 2",null,"CT- Concrete Feet","SARC- Dirt Devils",21,9,"CT- Concrete Feet",12,null,"D","SARC- Dirt Devils",{"$f":"COUNTIF('Night ONE'!I$3:I$50,M30)+COUNTIF('NIGHT TWO'!I$3:I$85,M30)+COUNTIF(I$3:I$81,M30)","v":1},10,null,-83,null,"CT- Concrete Feet"]
[8,null,"court 4",null,"CT- Spikological Warfare","CT- Volley Llamas",21,9,"CT- Spikological Warfare",12,null,"D","SARC- Sets on the Beach",{"$f":"COUNTIF('Night ONE'!I$3:I$50,M31)+COUNTIF('NIGHT TWO'!I$3:I$85,M31)+COUNTIF(I$3:I$81,M31)","v":4},7,null,-42,null,"SARC- Volleywood"]
[9,"08:00:00","court 2",null,"SARC- I'd Hit That","SARC- Volleywood",21,17,"SARC- Volleywood",4,null,"D","SARC- Mojo Risin ",{"$f":"COUNTIF('Night ONE'!I$3:I$50,M32)+COUNTIF('NIGHT TWO'!I$3:I$85,M32)+COUNTIF(I$3:I$81,M32)","v":2},9,null,-89]
[10,null,"court 4",null,"SARC- Notorious D.I.G.","SARC- Dirt Devils",21,8,"SARC- Notorious D.I.G.",13,null,"D","GS- El Toro's Revenge",{"$f":"COUNTIF('Night ONE'!I$3:I$50,M33)+COUNTIF('NIGHT TWO'!I$3:I$85,M33)+COUNTIF(I$3:I$81,M33)","v":8},3,null,46]
[11,"08:30:00","court 2",null,"SARC- Here for Beer","CT- Spikological Warfare",21,3,"CT- Spikological Warfare",18,null,"D","GS- Rhymes with Stupid",{"$f":"COUNTIF('Night ONE'!I$3:I$50,M34)+COUNTIF('NIGHT TWO'!I$3:I$85,M34)+COUNTIF(I$3:I$81,M34)","v":5},6,null,-21]
[12,null,"court 4",null,"SARC- Notorious D.I.G.","CT- Concrete Feet",21,14,"SARC- Notorious D.I.G.",7]
[13,"09:00:00","court 2",null,"CT- Volley Llamas","SARC- Dirt Devils",21,18,"CT- Volley Llamas",3]
[14,null,"court 4",null,"SARC- Volleywood","CT- Concrete Feet",21,7,"SARC- Volleywood",14]
[15,"09:30:00","court 2",null,"CT- Spikological Warfare","SARC- Notorious D.I.G.",21,14,"CT- Spikological Warfare",7]
[16,null,"court 4",null,"SARC- I'd Hit That","SARC- Here for Beer",21,19,"SARC- I'd Hit That",2]
[]
[]
[]
["LAKE PARK-   3rd Vertical Bracket Cross-section of Divisions",null,null,null,null,null,"Score"]
[null,null,null,null,"HOME","AWAY","W","L","Winner","Pt Diff"]
[1,"06:00:00","court 1",null,"LKP- Casual Sets","LKP- Block You Like a Hurricane",21,15,"LKP- Block You Like a Hurricane",{"$f":"G45-H45","v":6},null,null,null,null,null,null,null,null,"Teams at Lake Park"]
[2,null,"court 2",null,"SARC- Mojo Risin ","LKP- Will Play for Sets",21,6,"LKP- Will Play for Sets",{"$f":"G46-H46","v":15},null,null,null,null,null,null,null,null,"LKP- Casual Sets"]
[3,"06:30:00","court 1",null,"SARC- Sets on the Beach","HG- Swingrays",21,6,"HG- Swingrays",15,null,null,null,null,null,null,null,null,"SARC- Sets on the Beach"]
[4,null,"court 2",null,"LKP- Pass It Around","LKP- Casual Sets",21,18,"LKP- Pass It Around",3,null,null,null,null,null,null,null,null,"LKP- Bumpn' Uglies"]
[5,"07:00:00","court 1",null,"LKP- Will Play for Sets","LKP- Bumpn' Uglies",21,20,"LKP- Will Play for Sets",1,null,null,null,null,null,null,null,null,"SARC- Mojo Risin "]
[6,null,"court 2",null,"LKP- Block You Like a Hurricane","SARC- Sets on the Beach",21,18,"LKP- Block You Like a Hurricane",3,null,null,null,null,null,null,null,null,"LKP- Block You Like a Hurricane"]
[7,"07:30:00","court 1",null,"HG- Swingrays","SARC- Mojo Risin ",21,17,"SARC- Mojo Risin ",4,null,null,null,null,null,null,null,null,"LKP- Pass It Around"]
[8,null,"court 2",null,"LKP- Pass It Around","LKP- Block You Like a Hurricane",21,3,"LKP- Pass It Around",18,null,null,null,null,null,null,null,null,"HG- Swingrays"]
[9,"08:00:00","court 1",null,"LKP- Casual Sets","LKP- Will Play for Sets",21,3,"LKP- Will Play for Sets",18,null,null,null,null,null,null,null,null,"LKP- Will Play for Sets"]
[10,null,"court 2",null,"LKP- Bumpn' Uglies","SARC- Mojo Risin ",21,9,"LKP- Bumpn' Uglies",12]
[11,"08:30:00","court 1",null,"SARC- Sets on the Beach","LKP- Pass It Around",21,5,"LKP- Pass It Around",16]
[12,null,"court 2",null,"LKP- Bumpn' Uglies","HG- Swingrays",21,12,"LKP- Bumpn' Uglies",9]
[13,"09:00:00","court 1",null,"LKP- Block You Like a Hurricane","SARC- Mojo Risin ",21,10,"LKP- Block You Like a Hurricane",11]
[14,null,"court 2",null,"LKP- Will Play for Sets","HG- Swingrays",21,14,"LKP- Will Play for Sets",7]
[15,"09:30:00","court 1",null,"LKP- Pass It Around","LKP- Bumpn' Uglies",21,13,"LKP- Pass It Around",8]
[16,null,"court 2",null,"LKP- Casual Sets","SARC- Sets on the Beach",21,8,"LKP- Casual Sets",13]
[]
[]
[]
["GREYSTONE-   4th Vertical Bracket Cross-section of Divisions",null,null,null,null,null,"Score"]
[null,null,null,null,"HOME","AWAY","W","L","Winner","Pt Diff",null,null,null,null,null,null,null,null,"Teams at Greystone"]
[1,"06:00:00","court 1",null,"NR- Hit That Thang","GS- Sand Gators",21,10,"GS- Sand Gators",{"$f":"G66-H66","v":11},null,null,null,null,null,null,null,null,"NR- Hit That Thang"]
[2,null,"court 2",null,"GS- Rhymes with Stupid","SO- Kiss My Ace",21,7,"SO- Kiss My Ace",{"$f":"G67-H67","v":14},null,null,null,null,null,null,null,null,"GS- El Toro's Revenge"]
[3,"06:30:00","court 1",null,"GS- El Toro's Revenge","GS- Setsual Healing",21,12,"GS- Setsual Healing",9,null,null,null,null,null,null,null,null,"GS- 50 Shades of Greystone"]
[4,null,"court 2",null,"NR- Six Pack Attack","NR- Hit That Thang",21,11,"NR- Six Pack Attack",10,null,null,null,null,null,null,null,null,"GS- Rhymes with Stupid"]
[5,"07:00:00","court 1",null,"SO- Kiss My Ace","GS- 50 Shades of Greystone",21,9,"SO- Kiss My Ace",12,null,null,null,null,null,null,null,null,"GS- Sand Gators"]
[6,null,"court 2",null,"GS- Sand Gators","GS- El Toro's Revenge",21,11,"GS- Sand Gators",10,null,null,null,null,null,null,null,null,"NR- Six Pack Attack"]
[7,"07:30:00","court 1",null,"GS- Setsual Healing","GS- Rhymes with Stupid",21,4,"GS- Setsual Healing",17,null,null,null,null,null,null,null,null,"GS- Setsual Healing"]
[8,null,"court 2",null,"NR- Six Pack Attack","GS- Sand Gators",21,9,"NR- Six Pack Attack",12,null,null,null,null,null,null,null,null,"SO- Kiss My Ace"]
[9,"08:00:00","court 1",null,"NR- Hit That Thang","SO- Kiss My Ace",21,9,"SO- Kiss My Ace",12]
[10,null,"court 2",null,"GS- 50 Shades of Greystone","GS- Rhymes with Stupid",21,9,"GS- Rhymes with Stupid",12]
[11,"08:30:00","court 1",null,"GS- El Toro's Revenge","NR- Six Pack Attack",21,9,"NR- Six Pack Attack",12]
[12,null,"court 2",null,"GS- 50 Shades of Greystone","GS- Setsual Healing",21,12,"GS- Setsual Healing",9]
[13,"09:00:00","court 1",null,"GS- Sand Gators","GS- Rhymes with Stupid",21,10,"GS- Sand Gators",11]
[14,null,"court 2",null,"SO- Kiss My Ace","GS- Setsual Healing",21,10,"GS- Setsual Healing",11]
[15,"09:30:00","court 1",null,"NR- Six Pack Attack","GS- 50 Shades of Greystone",21,12,"NR- Six Pack Attack",9]
[16,null,"court 2",null,"NR- Hit That Thang","GS- El Toro's Revenge",21,11,"GS- El Toro's Revenge",10]

{"sheet":"Championship Night","index":4,"n_rows":69,"n_cols":21,"rows_kept":69,"cut":false,"hidden":false,"merged":[[4,15,7,15]]}
[null,"Growler Championship Night- 32 Team Single Elimination",null,null,null,null,null,null,null,"FINAL Seeding",null,null,null,null,null,"Raffle","Final 4",null,"Championship"]
[]
[]
[null,"17:30:00",null,"18:00:00",null,"18:30:00",null,"19:00:00",null,"19:30:00",null,"20:00:00",null,"20:30:00",null,"21:00:00","21:30:00",null,"22:00:00"]
[null,null,null,null,null,null,null,null,null,null,null,null,null,null,null,"Break for Announce-ments and Raffle"]
[null,null,null,null,1,"SARC- Volleywood"]
[null,null,null,null,null,1,null,null,null,"SARC- Volleywood"]
[null,null,null,null,32,"SARC- Mojo Risin "]
[null,null,null,null,null,"court 1",null,null,null,17,null,null,null,"SARC- Volleywood"]
[16,"SARC- Raleigh Brawl"]
[null,2]
[17,"GS- Sand Gators",null,null,null,null,null,null,null,"court 1"]
[null,"court 4",null,null,null,null,null,null,null,null,null,null,null,25,null,null,"SARC- $et for Life"]
[null,null,null,null,null,null,8,"SO- Kiss My Ace"]
[null,null,null,null,null,null,null,3,null,null,null,"SO- Kiss My Ace"]
[null,null,null,null,null,null,25,"GS- 50 Shades of Greystone"]
[null,null,null,null,null,null,null,"court 4",null,null,null,18,null,"SARC- $et for Life"]
[null,null,9,"SARC- $et for Life",null,null,null,null,null,null,null,null,null,"court 1"]
[null,null,null,4,null,null,null,null,null,null,null,"SARC- $et for Life"]
[null,null,24,"GS- Rhymes with Stupid",null,null,null,null,null,null,null,"court 4"]
[null,null,null,"court 1",null,null,null,null,null,null,null,null,null,null,null,null,29,null,"NR- Six Pack Attack"]
[null,null,null,null,4,"LKP- Will Play for Sets"]
[null,null,null,null,null,5,null,null,null,"LKP- Will Play for Sets"]
[null,null,null,null,29,"SARC- Dirt Devils"]
[null,null,null,null,null,"court 4",null,null,null,19,null,null,null,"LKP- Will Play for Sets"]
[13,"SARC- Unprotected Sets"]
[null,6]
[20,"NR- Hit That Thang",null,null,null,null,null,null,null,"court 4"]
[null,"court 1",null,null,null,null,null,null,null,null,null,null,null,26,null,null,"NR- Six Pack Attack"]
[null,null,null,null,null,null,5,"NR- Six Pack Attack",null,null,null,null,null,null,null,null,"court 1"]
[null,null,null,null,null,null,null,7,null,null,null,"NR- Six Pack Attack"]
[null,null,null,null,null,null,28,"CT- Concrete Feet"]
[null,null,null,null,null,null,null,"court 1",null,null,null,20,null,"NR- Six Pack Attack"]
[null,null,12,"GS- Setsual Healing",null,null,null,null,null,null,null,null,null,"court 4"]
[null,null,null,8]
[null,null,21,"LKP- Casual Sets",null,null,null,null,null,null,null,"court 1"]
[null,null,null,"court 4"]
[null,null,null,null,2,"SARC- Sand Diggers",null,null,null,null,null,null,null,null,null,null,null,null,31,null,"LKP- Pass It Around"]
[null,null,null,null,null,9,null,null,null,"SARC- Sand Diggers"]
[null,null,null,null,31,"SARC- Here for Beer"]
[null,null,null,null,null,"court 2",null,null,null,21,null,null,null,"SARC- Good Bumps, Nice Sets"]
[15,"GS- El Toro's Revenge"]
[null,10,null,null,null,null,null,null,null,"SARC- Good Bumps, Nice Sets"]
[18,"SARC- Good Bumps, Nice Sets",null,null,null,null,null,null,null,"court 2"]
[null,"court 3",null,null,null,null,null,null,null,null,null,null,null,27,null,null,"SARC- Good Bumps, Nice Sets"]
[null,null,null,null,null,null,7,"CT- Spikological Warfare"]
[null,null,null,null,null,null,null,11,null,null,null,"CT- Spikological Warfare"]
[null,null,null,null,null,null,26,"SARC- Mizfits"]
[null,null,null,null,null,null,null,"court 3",null,null,null,22,null,"HG- Swingrays"]
[null,null,10,"LKP- Bumpn' Uglies",null,null,null,null,null,null,null,null,null,"court 2"]
[null,null,null,12,null,null,null,null,null,null,null,"HG- Swingrays"]
[null,null,23,"HG- Swingrays",null,null,null,null,null,null,null,"court 3"]
[null,null,null,"court 2",null,null,null,null,null,null,null,null,null,null,null,null,30,null,"LKP- Pass It Around"]
[null,null,null,null,3,"LKP- Pass It Around"]
[null,null,null,null,null,13,null,null,null,"LKP- Pass It Around",null,null,null,null,null,null,null,null,"court 1"]
[null,null,null,null,30,"SARC- Sets on the Beach"]
[null,null,null,null,null,"court 3",null,null,null,23,null,null,null,"LKP- Pass It Around"]
[14,"SARC- I'd Hit That"]
[null,14]
[19,"CT- Volley Llamas",null,null,null,null,null,null,null,"court 3"]
[null,"court 2",null,null,null,null,null,null,null,null,null,null,null,28,null,null,"LKP- Pass It Around"]
[null,null,null,null,null,null,6,"LKP- Air Vectors",null,null,null,null,null,null,null,null,"court 2"]
[null,null,null,null,null,null,null,15,null,null,null,"LKP- Air Vectors"]
[null,null,null,null,null,null,27,"SO- Team Kona"]
[null,null,null,null,null,null,null,"court 2",null,null,null,24,null,"LKP- Air Vectors"]
[null,null,11,"LKP- Block You Like a Hurricane",null,null,null,null,null,null,null,null,null,"court 3"]
[null,null,null,16,null,null,null,null,null,null,null,"SARC- Notorious D.I.G."]
[null,null,22,"SARC- Notorious D.I.G.",null,null,null,null,null,null,null,"court 2"]
[null,null,null,"court 3"]

{"sheet":"GPI Ranking-Seeding","index":5,"n_rows":36,"n_cols":25,"rows_kept":36,"cut":false,"hidden":false,"merged":[[0,4,0,6],[0,2,0,3],[0,7,0,9],[0,10,0,11],[1,7,1,8]]}
[2016,"FINAL SEEDING ","#1- Strength of Schedule",null,"#2- NUMBER OF WINS",null,null,"#3- POINT DIFFERENTIAL",null,null,"#4- MONEY FOR ST BALDRICKS",null,null,null,null,null,null,"Point Differential"]
[{"$f":"'Team SB Donations'!E1","v":"8/21/16  7am"},"Method for Determining Points >>>>>>>>>>>>>>>","Points","A= 8 pts,      B=5 pts,       C= 2 pts,      D= 0 pts",null,"Points","= # of Wins","Ranking",null,"=(32-Rank)/7","Ranking","=(32-Rank)/5","Total Pts from Wins, Pt Diff, Tier Diff, Money raised",null,null,null,null,null,"Division","Teams","Win","Loss",".","PT DIFF","Rank"]
[null,"Point Variance",null,8,null,null,11,null,null,4.4000000000000004,null,6,null,null,null,null,null,null,"C","GS- Setsual Healing",10,1,null,107,1]
["Ranking","Teams","Team Level","Points for Tier Difficulty","Win","Loss","Points from W/L","POINT DIFFERENTIAL","Pt Diff Rank","Points from Pt Diff ","Rank- Money Raised for St Baldricks or Sponsorship","POINTS for Money Raised for St Baldricks or Sponsorship","TOTAL POINTS",null,null,null,null,null,"B","LKP- Bumpn' Uglies",9,2,null,87,2]
[1,"SARC- Volleywood","A",{"$f":"IF(C5=\"A\",8,IF(C5=\"B\",5,IF(C5=\"C\",2,0)))","v":8},{"$f":"VLOOKUP(B5,'NIGHT THREE'!M$3:N$34,2,FALSE)","v":7},{"$f":"VLOOKUP(B5,'NIGHT THREE'!M$3:O$34,3,FALSE)","v":4},{"$f":"E5","v":7},{"$f":"VLOOKUP(B5,T$3:Y$34,5,FALSE)","v":33},{"$f":"VLOOKUP($B5,T$3:Y$34,6,FALSE)","v":11},{"$f":"(32-I5)/7","v":3},{"$f":"VLOOKUP($B5,'Team SB Donations'!B$5:L$36,11,FALSE)","v":2},{"$f":"(32-K5)/5","v":6},{"$f":"G5+J5+D5+L5","v":24},null,null,null,null,null,"A","LKP- Will Play for Sets",9,2,null,71,3]
[2,"SARC- Sand Diggers","B",{"$f":"IF(C6=\"A\",8,IF(C6=\"B\",5,IF(C6=\"C\",2,0)))","v":5},{"$f":"VLOOKUP(B6,'NIGHT THREE'!M$3:N$34,2,FALSE)","v":7},{"$f":"VLOOKUP(B6,'NIGHT THREE'!M$3:O$34,3,FALSE)","v":4},{"$f":"E6","v":7},{"$f":"VLOOKUP(B6,T$3:Y$34,5,FALSE)","v":49},{"$f":"VLOOKUP($B6,T$3:Y$34,6,FALSE)","v":8},{"$f":"(32-I6)/7","v":3.4285714285714284},{"$f":"VLOOKUP($B6,'Team SB Donations'!B$5:L$36,11,FALSE)","v":1},{"$f":"(32-K6)/5","v":6.2},{"$f":"G6+J6+D6+L6","v":21.62857142857143},null,null,null,null,null,"D","SARC- Unprotected Sets",8,3,null,55,4]
[3,"LKP- Pass It Around","A",8,{"$f":"VLOOKUP(B7,'NIGHT THREE'!M$3:N$34,2,FALSE)","v":8},{"$f":"VLOOKUP(B7,'NIGHT THREE'!M$3:O$34,3,FALSE)","v":3},8,{"$f":"VLOOKUP(B7,T$3:Y$34,5,FALSE)","v":53},5,3.8571428571428572,{"$f":"VLOOKUP($B7,'Team SB Donations'!B$5:L$36,11,FALSE)","v":12},4,23.857142857142858,null,null,null,null,null,"A","LKP- Pass It Around",8,3,null,53,5]
[4,"LKP- Will Play for Sets","A",8,{"$f":"VLOOKUP(B8,'NIGHT THREE'!M$3:N$34,2,FALSE)","v":9},{"$f":"VLOOKUP(B8,'NIGHT THREE'!M$3:O$34,3,FALSE)","v":2},9,{"$f":"VLOOKUP(B8,T$3:Y$34,5,FALSE)","v":71},3,4.1428571428571432,{"$f":"VLOOKUP($B8,'Team SB Donations'!B$5:L$36,11,FALSE)","v":20},2.4,23.542857142857141,null,null,null,null,null,"A","CT- Spikological Warfare",8,3,null,52,6]
[5,"NR- Six Pack Attack","A",8,{"$f":"VLOOKUP(B9,'NIGHT THREE'!M$3:N$34,2,FALSE)","v":7},{"$f":"VLOOKUP(B9,'NIGHT THREE'!M$3:O$34,3,FALSE)","v":4},7,{"$f":"VLOOKUP(B9,T$3:Y$34,5,FALSE)","v":45},10,3.1428571428571428,{"$f":"VLOOKUP($B9,'Team SB Donations'!B$5:L$36,11,FALSE)","v":13},3.8,21.942857142857143,null,null,null,null,null,"C","GS- Sand Gators",7,4,null,52,7]
[6,"LKP- Air Vectors","A",8,{"$f":"VLOOKUP(B10,'NIGHT THREE'!M$3:N$34,2,FALSE)","v":7},{"$f":"VLOOKUP(B10,'NIGHT THREE'!M$3:O$34,3,FALSE)","v":4},7,{"$f":"VLOOKUP($B10,T$3:Y$34,5,FALSE)","v":7},15,2.4285714285714284,{"$f":"VLOOKUP($B10,'Team SB Donations'!B$5:L$36,11,FALSE)","v":10},4.4000000000000004,21.828571428571429,null,null,null,null,null,"B","SARC- Sand Diggers",7,4,null,49,8]
[7,"CT- Spikological Warfare","A",8,{"$f":"VLOOKUP(B11,'NIGHT THREE'!M$3:N$34,2,FALSE)","v":8},{"$f":"VLOOKUP(B11,'NIGHT THREE'!M$3:O$34,3,FALSE)","v":3},8,{"$f":"VLOOKUP(B11,T$3:Y$34,5,FALSE)","v":52},6,3.7142857142857144,{"$f":"VLOOKUP($B11,'Team SB Donations'!B$5:L$36,11,FALSE)","v":23},1.8,21.514285714285716,null,null,null,null,null,"D","GS- El Toro's Revenge",8,3,null,46,9]
[8,"SO- Kiss My Ace","A",8,{"$f":"VLOOKUP(B12,'NIGHT THREE'!M$3:N$34,2,FALSE)","v":7},{"$f":"VLOOKUP(B12,'NIGHT THREE'!M$3:O$34,3,FALSE)","v":4},7,16,14,2.5714285714285716,{"$f":"VLOOKUP($B12,'Team SB Donations'!B$5:L$36,11,FALSE)","v":17},3,20.571428571428569,null,null,null,null,null,"A","NR- Six Pack Attack",7,4,null,45,10]
[9,"SARC- $et for Life","A",8,{"$f":"VLOOKUP(B13,'NIGHT THREE'!M$3:N$34,2,FALSE)","v":5},{"$f":"VLOOKUP(B13,'NIGHT THREE'!M$3:O$34,3,FALSE)","v":6},5,27,12,2.8571428571428572,{"$f":"VLOOKUP($B13,'Team SB Donations'!B$5:L$36,11,FALSE)","v":14},3.6,19.457142857142859,null,null,null,null,null,"A","SARC- Volleywood",7,4,null,33,11]
[10,"LKP- Bumpn' Uglies","B",5,{"$f":"VLOOKUP(B14,'NIGHT THREE'!M$3:N$34,2,FALSE)","v":9},{"$f":"VLOOKUP(B14,'NIGHT THREE'!M$3:O$34,3,FALSE)","v":2},9,87,2,4.2857142857142856,{"$f":"VLOOKUP($B14,'Team SB Donations'!B$5:L$36,11,FALSE)","v":27},1,19.285714285714285,null,null,null,null,null,"A","SARC- $et for Life",5,6,null,27,12]
[11,"LKP- Block You Like a Hurricane","C",2,{"$f":"VLOOKUP(B15,'NIGHT THREE'!M$3:N$34,2,FALSE)","v":8},{"$f":"VLOOKUP(B15,'NIGHT THREE'!M$3:O$34,3,FALSE)","v":3},8,24,13,2.7142857142857144,{"$f":"VLOOKUP($B15,'Team SB Donations'!B$5:L$36,11,FALSE)","v":4},5.6,18.314285714285717,null,null,null,null,null,"C","LKP- Block You Like a Hurricane",8,3,null,24,13]
[12,"GS- Setsual Healing","C",2,{"$f":"VLOOKUP(B16,'NIGHT THREE'!M$3:N$34,2,FALSE)","v":10},{"$f":"VLOOKUP(B16,'NIGHT THREE'!M$3:O$34,3,FALSE)","v":1},10,107,1,4.4285714285714288,{"$f":"VLOOKUP($B16,'Team SB Donations'!B$5:L$36,11,FALSE)","v":29},0.6,17.028571428571432,null,null,null,null,null,"A","SO- Kiss My Ace",7,4,null,16,14]
[13,"SARC- Unprotected Sets","D",0,{"$f":"VLOOKUP(B17,'NIGHT THREE'!M$3:N$34,2,FALSE)","v":8},{"$f":"VLOOKUP(B17,'NIGHT THREE'!M$3:O$34,3,FALSE)","v":3},8,55,4,4,{"$f":"VLOOKUP($B17,'Team SB Donations'!B$5:L$36,11,FALSE)","v":7},5,17,null,null,null,null,null,"A","LKP- Air Vectors",7,4,null,7,15]
[14,"SARC- I'd Hit That","B",5,{"$f":"VLOOKUP(B18,'NIGHT THREE'!M$3:N$34,2,FALSE)","v":6},{"$f":"VLOOKUP(B18,'NIGHT THREE'!M$3:O$34,3,FALSE)","v":5},6,-1,18,2,{"$f":"VLOOKUP($B18,'Team SB Donations'!B$5:L$36,11,FALSE)","v":18},2.8,15.8,null,null,null,null,null,"C","SARC- Good Bumps, Nice Sets",7,4,null,5,16]
[15,"GS- El Toro's Revenge","D",0,{"$f":"VLOOKUP(B19,'NIGHT THREE'!M$3:N$34,2,FALSE)","v":8},{"$f":"VLOOKUP(B19,'NIGHT THREE'!M$3:O$34,3,FALSE)","v":3},8,46,9,3.2857142857142856,{"$f":"VLOOKUP($B19,'Team SB Donations'!B$5:L$36,11,FALSE)","v":15},3.4,14.685714285714285,null,null,null,null,null,"C","HG- Swingrays",4,7,null,0,17]
[16,"SARC- Raleigh Brawl","B",5,{"$f":"VLOOKUP(B20,'NIGHT THREE'!M$3:N$34,2,FALSE)","v":3},{"$f":"VLOOKUP(B20,'NIGHT THREE'!M$3:O$34,3,FALSE)","v":8},3,-32,23,1.2857142857142858,{"$f":"VLOOKUP($B20,'Team SB Donations'!B$5:L$36,11,FALSE)","v":9},4.5999999999999996,13.885714285714284,null,null,null,null,null,"B","SARC- I'd Hit That",6,5,null,-1,18]
[17,"GS- Sand Gators","C",2,{"$f":"VLOOKUP(B21,'NIGHT THREE'!M$3:N$34,2,FALSE)","v":7},{"$f":"VLOOKUP(B21,'NIGHT THREE'!M$3:O$34,3,FALSE)","v":4},7,52,7,3.5714285714285716,{"$f":"VLOOKUP($B21,'Team SB Donations'!B$5:L$36,11,FALSE)","v":26},1.2,13.77142857142857,null,null,null,null,null,"D","GS- Rhymes with Stupid",5,6,null,-21,19]
[18,"SARC- Good Bumps, Nice Sets","C",2,{"$f":"VLOOKUP(B22,'NIGHT THREE'!M$3:N$34,2,FALSE)","v":7},{"$f":"VLOOKUP(B22,'NIGHT THREE'!M$3:O$34,3,FALSE)","v":4},7,5,16,2.2857142857142856,{"$f":"VLOOKUP($B22,'Team SB Donations'!B$5:L$36,11,FALSE)","v":21},2.2000000000000002,13.485714285714284,null,null,null,null,null,"B","LKP- Casual Sets",4,7,null,-23,20]
[19,"CT- Volley Llamas","C",2,{"$f":"VLOOKUP(B23,'NIGHT THREE'!M$3:N$34,2,FALSE)","v":5},{"$f":"VLOOKUP(B23,'NIGHT THREE'!M$3:O$34,3,FALSE)","v":6},5,-29,22,1.4285714285714286,{"$f":"VLOOKUP($B23,'Team SB Donations'!B$5:L$36,11,FALSE)","v":8},4.8,13.228571428571428,null,null,null,null,null,"B","NR- Hit That Thang",3,8,null,-28,21]
[20,"NR- Hit That Thang","B",5,{"$f":"VLOOKUP(B24,'NIGHT THREE'!M$3:N$34,2,FALSE)","v":3},{"$f":"VLOOKUP(B24,'NIGHT THREE'!M$3:O$34,3,FALSE)","v":8},3,-28,21,1.5714285714285714,{"$f":"VLOOKUP($B24,'Team SB Donations'!B$5:L$36,11,FALSE)","v":22},2,11.571428571428571,null,null,null,null,null,"C","CT- Volley Llamas",5,6,null,-29,22]
[21,"LKP- Casual Sets","B",5,{"$f":"VLOOKUP(B25,'NIGHT THREE'!M$3:N$34,2,FALSE)","v":4},{"$f":"VLOOKUP(B25,'NIGHT THREE'!M$3:O$34,3,FALSE)","v":7},4,-23,20,1.7142857142857142,{"$f":"VLOOKUP($B25,'Team SB Donations'!B$5:L$36,11,FALSE)","v":28},0.8,11.514285714285716,null,null,null,null,null,"B","SARC- Raleigh Brawl",3,8,null,-32,23]
[22,"SARC- Notorious D.I.G.","B",5,{"$f":"VLOOKUP(B26,'NIGHT THREE'!M$3:N$34,2,FALSE)","v":4},{"$f":"VLOOKUP(B26,'NIGHT THREE'!M$3:O$34,3,FALSE)","v":7},4,-57,26,0.8571428571428571,{"$f":"VLOOKUP($B26,'Team SB Donations'!B$5:L$36,11,FALSE)","v":24},1.6,11.457142857142857,null,null,null,null,null,"C","CT- Concrete Feet",4,7,null,-36,24]
[23,"HG- Swingrays","C",2,{"$f":"VLOOKUP(B27,'NIGHT THREE'!M$3:N$34,2,FALSE)","v":4},{"$f":"VLOOKUP(B27,'NIGHT THREE'!M$3:O$34,3,FALSE)","v":7},4,0,17,2.1428571428571428,{"$f":"VLOOKUP($B27,'Team SB Donations'!B$5:L$36,11,FALSE)","v":16},3.2,11.342857142857142,null,null,null,null,null,"D","SARC- Sets on the Beach",4,7,null,-42,25]
[24,"GS- Rhymes with Stupid","D",0,{"$f":"VLOOKUP(B28,'NIGHT THREE'!M$3:N$34,2,FALSE)","v":5},{"$f":"VLOOKUP(B28,'NIGHT THREE'!M$3:O$34,3,FALSE)","v":6},5,-21,19,1.8571428571428572,{"$f":"VLOOKUP($B28,'Team SB Donations'!B$5:L$36,11,FALSE)","v":11},4.2,11.057142857142857,null,null,null,null,null,"B","SARC- Notorious D.I.G.",4,7,null,-57,26]
[25,"GS- 50 Shades of Greystone","B",5,{"$f":"VLOOKUP(B29,'NIGHT THREE'!M$3:N$34,2,FALSE)","v":3},{"$f":"VLOOKUP(B29,'NIGHT THREE'!M$3:O$34,3,FALSE)","v":8},3,-61,27,0.7142857142857143,{"$f":"VLOOKUP($B29,'Team SB Donations'!B$5:L$36,11,FALSE)","v":31},0.2,8.9142857142857146,null,null,null,null,null,"B","GS- 50 Shades of Greystone",3,8,null,-61,27]
[26,"SARC- Mizfits","D",0,{"$f":"VLOOKUP(B30,'NIGHT THREE'!M$3:N$34,2,FALSE)","v":3},{"$f":"VLOOKUP(B30,'NIGHT THREE'!M$3:O$34,3,FALSE)","v":8},3,-70,29,0.42857142857142855,{"$f":"VLOOKUP($B30,'Team SB Donations'!B$5:L$36,11,FALSE)","v":6},5.2,8.6285714285714281,null,null,null,null,null,"D","SARC- Here for Beer",2,9,null,-68,28]
[27,"SO- Team Kona","C",2,{"$f":"VLOOKUP(B31,'NIGHT THREE'!M$3:N$34,2,FALSE)","v":1},{"$f":"VLOOKUP(B31,'NIGHT THREE'!M$3:O$34,3,FALSE)","v":10},1,-89,31,0.14285714285714285,{"$f":"VLOOKUP($B31,'Team SB Donations'!B$5:L$36,11,FALSE)","v":5},5.4,8.5428571428571427,null,null,null,null,null,"D","SARC- Mizfits",3,8,null,-70,29]
[28,"CT- Concrete Feet","C",2,{"$f":"VLOOKUP(B32,'NIGHT THREE'!M$3:N$34,2,FALSE)","v":4},{"$f":"VLOOKUP(B32,'NIGHT THREE'!M$3:O$34,3,FALSE)","v":7},4,-36,24,1.1428571428571428,{"$f":"VLOOKUP($B32,'Team SB Donations'!B$5:L$36,11,FALSE)","v":30},0.4,7.5428571428571427,null,null,null,null,null,"D","SARC- Dirt Devils",1,10,null,-83,30]
[29,"SARC- Dirt Devils","D",0,{"$f":"VLOOKUP(B33,'NIGHT THREE'!M$3:N$34,2,FALSE)","v":1},{"$f":"VLOOKUP(B33,'NIGHT THREE'!M$3:O$34,3,FALSE)","v":10},1,-83,30,0.2857142857142857,{"$f":"VLOOKUP($B33,'Team SB Donations'!B$5:L$36,11,FALSE)","v":3},5.8,7.0857142857142854,null,null,null,null,null,"C","SO- Team Kona",1,10,null,-89,31]
[30,"SARC- Sets on the Beach","D",0,{"$f":"VLOOKUP(B34,'NIGHT THREE'!M$3:N$34,2,FALSE)","v":4},{"$f":"VLOOKUP(B34,'NIGHT THREE'!M$3:O$34,3,FALSE)","v":7},4,-42,25,1,{"$f":"VLOOKUP($B34,'Team SB Donations'!B$5:L$36,11,FALSE)","v":25},1.4,6.4,null,null,null,null,null,"D","SARC- Mojo Risin ",2,9,null,-89,32]
[31,"SARC- Here for Beer","D",0,{"$f":"VLOOKUP(B35,'NIGHT THREE'!M$3:N$34,2,FALSE)","v":2},{"$f":"VLOOKUP(B35,'NIGHT THREE'!M$3:O$34,3,FALSE)","v":9},2,-68,28,0.5714285714285714,{"$f":"VLOOKUP($B35,'Team SB Donations'!B$5:L$36,11,FALSE)","v":19},2.6,5.1714285714285708]
[32,"SARC- Mojo Risin ","D",0,{"$f":"VLOOKUP(B36,'NIGHT THREE'!M$3:N$34,2,FALSE)","v":2},{"$f":"VLOOKUP(B36,'NIGHT THREE'!M$3:O$34,3,FALSE)","v":9},2,-89,32,0,{"$f":"VLOOKUP($B36,'Team SB Donations'!B$5:L$36,11,FALSE)","v":32},0,2]

{"sheet":"Team SB Donations","index":6,"n_rows":36,"n_cols":19,"rows_kept":36,"cut":false,"hidden":false,"merged":[]}
[null,"St Baldrick's Download Team Report",null,null,"8/21/16  7am",null,null,null,null,null,null,null,null,1,2,3,4,5,6]
[]
[null,1,2,3,4,5,6,7,8,9,10,11,null,"2016-08-21T07:00:00"]
[null,"Schedule Name","Team Name","# of Participants","Team Captain Full Name","Team Captain Display Name","Team Fundraising Goal","Amount Raised","Sponsorships earned","Cash Sponsors acquired or other SB credits","Total","Growler Team Rank",null,"Team Name","# of Participants","Team Captain Full Name","Team Captain Display Name","Team Fundraising Goal","Amount Raised"]
[null,"SARC- Sand Diggers","Sand Diggers",5,"John M Marks","John Marks",3500,{"$f":"VLOOKUP($C5,N$5:S$36,6,FALSE)","v":5443},350,"Alvis Dent., misplaced SB",{"$f":"SUM(H5:I5)","v":5793},1,null,"Air vectors",3,"Lawrence R Lee","Lawrence Lee",300,1182]
[null,"SARC- Volleywood","Volleywood",7,"Jason P Grieco","Jason Grieco",4000,2775,null,null,2775,2,null,"Kiss My Ace!",3,"Olaf  Schroeder","Olaf Schroeder",500,900]
[null,"SARC- Dirt Devils","Mizfits",8,"Jay W Cupstid","Jay Cupstid",2000,1483,600,"BTM Landscape,  Alvis D",2083,3,null,"$et For Life",2,"Dan J Schaefer","Dan Schaefer",750,1020]
[null,"LKP- Block You Like a Hurricane","Dirt Devils",3,"Beth  Farrell","Beth Farrell",1000,450,1500,"Campbell Ortho",1950,4,null,"Bumpn' Uglies",1,"Kenneth  Muller","Kenneth Muller",500,515]
[null,"SO- Team Kona","Block You Like A Hurricane",5,"James  Perotti","James Perotti",400,1950,null,null,1950,5,null,"Casual Sets",1,"Dave  Radcliffe","Dave Radcliffe",500,505]
[null,"SARC- Mizfits","Team Kona",1,"Joe  Maierhofer","Joe Maierhofer",2000,1785,null,null,1785,6,null,"Will Play For Sets",5,"John D Allen","John Allen",500,825]
[null,"SARC- Unprotected Sets","Unprotected Sets",1,"Ryan D Oxendine","Ryan Oxendine",1000,200,1500,"Oxendine- Price attorneys",1700,7,null,"Hit That Thang",6,"Stephen  Hamilton","Stephen Hamilton",400,725]
[null,"CT- Volley Llamas","Volley Llamas",5,"Eric  Yount","Eric Yount",250,1595,null,null,1595,8,null,"Pass it Around",4,"Gregg  Klofenstine","Gregg Klofenstine",1500,1230]
[null,"SARC- Raleigh Brawl","Raleigh Brawl",1,"Rob S Caulfield","Rob Caulfield",500,0,1450,"GP Agency, A&M, Lexus",1450,9,null,"El Toro's Revenge",2,"Joe  Cockerham","Joe Cockerham",450,1011]
[null,"LKP- Air Vectors","Pass it Around",2,"Gregg  Klofenstine","Gregg Klofenstine",1000,1230,200,"SB misplaced site",1430,10,null,"Notorious D.I.G.",3,"Matt  Vaughn","Matt Vaughn",400,650]
[null,"GS- Rhymes with Stupid","Air vectors",3,"Lawrence R Lee","Lawrence Lee",300,1182,null,null,1182,11,null,"Mizfits",8,"Jay W Cupstid","Jay Cupstid",2000,1483]
[null,"LKP- Pass It Around","Rhymes With Stupid",6,"Greg  Wait","Greg Wait",1000,1110,null,null,1110,12,null,"Raleigh Brawl",1,"Rob S Caulfield","Rob Caulfield",500,0]
[null,"NR- Six Pack Attack","Six Pack Attack",5,"Robby A White","Robby White",500,500,550,"SB check in hand",1050,13,null,"Sand Gators",1,"Jeff  Sharp","Jeff Sharp",1000,515]
[null,"SARC- $et for Life","$et For Life",2,"Dan J Schaefer","Dan Schaefer",750,1020,null," ",1020,14,null,"Here for the Beer",6,"Bill  Green","Bill Green",1000,875]
[null,"GS- El Toro's Revenge","El Toro's Revenge",2,"Joe  Cockerham","Joe Cockerham",450,1011,null,null,1011,15,null,"Mojo Risin'",1,"Beth  Munoz","Beth Munoz",400,301]
[null,"HG- Swingrays","Swingrays",2,"Glenn  Lucas","Glenn Lucas",1000,900,null,null,900,16,null,"Six Pack Attack",5,"Robby A White","Robby White",500,500]
[null,"SO- Kiss My Ace","Kiss My Ace!",3,"Olaf  Schroeder","Olaf Schroeder",500,900,null,null,900,17,null,"Swingrays",2,"Glenn  Lucas","Glenn Lucas",1000,900]
[null,"SARC- I'd Hit That","I'd Hit That",7,"Holly C Mabe","Holly Mabe",500,875,null,null,875,18,null,"Volleywood",7,"Jason P Grieco","Jason Grieco",4000,2775]
[null,"SARC- Here for Beer","Here for the Beer",6,"Bill  Green","Bill Green",1000,875,null,null,875,19,null,"Concrete Feet",4,"John J Willey","John Willey",250,485]
[null,"LKP- Will Play for Sets","Will Play For Sets",4,"John D Allen","John Allen",500,825,null,null,825,20,null,"Dirt Devils",3,"Beth  Farrell","Beth Farrell",1000,450]
[null,"SARC- Good Bumps, Nice Sets","Good Bumps, Nice Sets",7,"Haleigh  McCollum","Haleigh McCollum",1000,565,250,"Nutri Lawn",815,21,null,"Unprotected Sets",1,"Ryan D Oxendine","Ryan Oxendine",1000,200]
[null,"NR- Hit That Thang","Spikological Warfare",2,"Burt  Driscoll","Burt Driscoll",1750,800,null,null,800,22,null,"Fifty Shades of Greystone",2,"Marshall A Lamb","Marshall Lamb",210,350]
[null,"CT- Spikological Warfare","Hit That Thang",6,"Stephen  Hamilton","Stephen Hamilton",400,725,50,"SB check in hand",775,23,null,"Setsual Healing",3,"Michael D Braga","Michael Braga",500,500]
[null,"SARC- Notorious D.I.G.","Notorious D.I.G.",3,"Matt  Vaughn","Matt Vaughn",400,650,100,"SB check in hand",750,24,null,"Team Kona",1,"Joe  Maierhofer","Joe Maierhofer",2000,1785]
[null,"SARC- Sets on the Beach","Sets on the Beach",5,"Jennifer H Daft","Jennifer Daft",1000,175,500,"Stancil",675,25,null,"Block You Like A Hurricane",5,"James  Perotti","James Perotti",400,1950]
[null,"GS- Sand Gators","Sand Gators",1,"Jeff  Sharp","Jeff Sharp",1000,515,null,null,515,26,null,"Good Bumps, Nice Sets",7,"Haleigh  McCollum","Haleigh McCollum",1000,565]
[null,"LKP- Bumpn' Uglies","Bumpn' Uglies",1,"Kenneth  Muller","Kenneth Muller",500,515,null,null,515,27,null,"Sets on the Beach",5,"Jennifer H Daft","Jennifer Daft",1000,175]
[null,"LKP- Casual Sets","Casual Sets",1,"Dave  Radcliffe","Dave Radcliffe",500,505,null,null,505,28,null,"I'd Hit That",7,"Holly C Mabe","Holly Mabe",500,875]
[null,"GS- Setsual Healing","Setsual Healing",3,"Michael D Braga","Michael Braga",500,500,null,null,500,29,null,"Rhymes With Stupid",6,"Greg  Wait","Greg Wait",1000,1110]
[null,"CT- Concrete Feet","Concrete Feet",4,"John J Willey","John Willey",250,485,null,null,485,30,null,"Spikological Warfare",2,"Burt  Driscoll","Burt Driscoll",1750,800]
[null,"GS- 50 Shades of Greystone","Fifty Shades of Greystone",2,"Marshall A Lamb","Marshall Lamb",210,350,null,null,350,31,null,"Volley Llamas",5,"Eric  Yount","Eric Yount",250,1595]
[null,"SARC- Mojo Risin ","Mojo Risin'",1,"Beth  Munoz","Beth Munoz",400,301,null,null,301,32,null,"Sand Diggers",7,"John M Marks","John Marks",3500,5443]

{"sheet":"Teams","index":7,"n_rows":49,"n_cols":30,"rows_kept":49,"cut":false,"hidden":false,"merged":[]}
[null,null,null,null,null,null,null,null,null,null,null,null,null,null,null,null,null,null,null,null,null,null,null,"Division","Teams","Win","Loss",".","PT DIFF","Received Reg forms (Div request)"]
[null,null,null,null,null,null,null,null,null,null,null,null,null,null,null,null,null,null,null,null,null,null,null,"A","NR- Six Pack Attack",11,0,null,105,"A"]
[null,null,null,null,null,null,null,null,null,null,null,null,null,null,null,null,null,null,null,null,null,null,null,"A","SARC- Volleywood",8,3,null,64,"A"]
[null,null,null,null,null,null,null,null,null,null,null,null,null,null,null,null,null,null,null,null,null,null,null,"A","LKP- Air Vectors",8,3,null,52,"A"]
[null,null,null,null,null,null,null,null,null,null,null,null,null,null,null,null,null,null,null,null,null,null,null,"A","SO- Kiss My Ace",8,3,null,28,"A"]
[null,null,null,null,null,null,null,null,null,null,null,null,null,null,null,null,null,null,null,null,null,null,null,"A","LKP- Will Play for Sets",7,4,null,17,"A"]
[null,null,null,null,null,null,null,null,null,null,null,null,null,null,null,null,null,null,null,null,null,null,null,"A","LKP- Pass It Around",4,7,null,-11,"A"]
[null,null,null,null,null,null,null,null,null,null,null,null,null,null,null,null,null,null,null,null,null,null,"A","C","SARC- $et for Life",9,2,null,67,"A"]
[null,null,null,null,null,null,null,null,null,null,null,null,null,null,null,null,null,null,null,null,null,null,"CT #3  A","D","CT - Spikological Warfare",2,9,null,-74,"A"]
[null,null,null,null,null,null,null,null,null,null,null,null,null,null,null,null,null,null,null,null,null,null,null,"A","LKP- Casual Sets",6,5,null,6,"B"]
[null,null,null,null,null,null,null,null,null,null,null,null,null,null,null,null,null,null,null,null,"A TEAMS",null,"B","A","GS- 50 Shades of Greystone",2,9,null,-57,"B"]
[null,null,null,null,null,null,null,null,null,null,null,null,null,null,null,null,null,null,null,null,"C Teams",null,null,"B","LKP- Bumpn' Uglies",7,4,null,62,"B"]
[null,null,null,null,null,null,null,null,null,null,null,null,null,null,null,null,null,null,null,null,"B TEAMS",null,null,"B","SARC- Sand Diggers",7,4,null,34,"B"]
[null,null,null,null,null,null,null,null,null,null,null,null,null,null,null,null,null,null,null,null,"D Teams",null,null,"B","NR- Hit That Thang",7,4,null,12,"B"]
["2016 TEAMS",null,null,null,null,null,null,null,null,null,null,null,null,null,null,null,null,null,null,null,null,null,null,"B","SARC- Notorious D.I.G.",5,6,null,3,"B"]
[null,null,null,null,null,null,null,null,null,null,null,null,null,null,null,null,null,null,null,null,null,null,null,"B","SARC- I'd Hit That",4,7,null,-12,"B or C"]
["# of Teams","Teams per club","Captain","Club",null,"Team","Division","Team #","Full Name",null,null,"Team #s",null,null,null,null,null,null,null,null,null,null,null,"B","SARC- Raleigh Brawl",4,7,null,-40]
[1,1,"Jay Cupstid","Springdale","SARC","Mizfits","D",26,{"$f":"E18& \"- \" & F18","v":"SARC- Mizfits"},null,"Bracket",null,null,null,null,"Bracket",null,null,null,null,null,null,"C","C","GS- Setsual Healing",3,8,null,-21,"B"]
[2,2,"Jason Grieco","Springdale","SARC","Volleywood","A",4,{"$f":"E19& \"- \" & F19","v":"SARC- Volleywood"},null,"A1",1,2,3,4,"A2",5,6,7,8,null,null,"requesting C","B","CT- Concrete Feet",10,1,null,85,"C"]
[3,3,"Jay Daft","Springdale","SARC","Sets on the Beach","D",29,"SARC- Sets on the Beach",null,"C1",9,10,11,12,"C2",13,14,15,16,null,null,"B","C","GS- Sand Gators",8,3,null,43,"C"]
[4,4,"John Marks","Springdale","SARC","Sand Diggers","B",18,"SARC- Sand Diggers",null,"B1",17,18,19,20,"B2",21,22,23,24,null,null,null,"C","SARC- Good Bumps, Nice Sets",7,4,null,12,"C"]
[5,5,"Shawn Mabe","Springdale","SARC","I'd Hit That","B",19,"SARC- I'd Hit That",null,"D1",25,26,27,28,"D2",29,30,31,32,null,null,null,"C","LKP- Block You Like a Hurricane",5,6,null,-8,"C"]
[6,6,"Rob Caulfield","Springdale","SARC","Raleigh Brawl","B",17,"SARC- Raleigh Brawl",null,null,null,null,null,null,null,null,null,null,null,null,null,null,"C","HG- Swingrays",5,6,null,-12,"C"]
[7,7,"Beth/Bruce Farell","Springdale","SARC","Dirt Devils","D",28,"SARC- Dirt Devils","2016 Bracket Slots",null,"2016 Brackets",null,null,null,null,null,null,null,null,null,null,null,"D","SO- Team Kona",6,5,null,-1,"C or D"]
[8,8,"Haleigh McCollum","Springdale","SARC","Good Bumps, Nice Sets","C",9,"SARC- Good Bumps, Nice Sets",null,"Bracket",null,null,null,null,"Bracket",null,null,null,null,null,null,"C","D","CT- Volley Llamas",9,2,null,74,"C"]
[9,9,"AP Blake","Springdale","SARC","Here for Beer","D",27,"SARC- Here for Beer",null,null,"SARC - Week 3","SARC - Week 3","SARC - Week 3","SARC - Week 3",null,"LKP - Week 3","LKP - Week 3","GS - Week 3","GS - Week 3",null,null,null,"D","GS- El Toro's Revenge",6,5,null,29,"D"]
[10,10,"Ray Gonzalez","Springdale","SARC","Mojo Risin ","D",30,"SARC- Mojo Risin ","LKP - A Div teams week 2","A1","LPK-Air Vectors","SARC- $et for Life","CT - Spikological Warfare","SARC- Volleywood","A2","LPK- Pass it Around","LPK-WILL Play for Sets","NR- Six Pack Attack","SO- Kiss My Ace",null,null,null,"B","GS- Rhymes with Stupid",1,10,null,-99,"C"]
[11,11,"Matt Vaughan","Springdale","SARC","Notorious D.I.G.","B",20,"SARC- Notorious D.I.G.","GS- C Div teams week 2","C1","SARC- Good Bumps","SO- Team Kona","CT- Volley Llamas","CT Concrete Feet","C2","LKP- Block You Like a Hurricane","HG- Swing Rays","GS- Sand Gators","GS- Setual Healing",null,null,null,"D","SARC- Unprotected Sets",5,6,null,-19,"D"]
[12,12,"Ryan Oxendine","Springdale","SARC","Unprotected Sets","D",25,"SARC- Unprotected Sets","SARC - B Div teams week 2","B1","SARC- Raleigh Brawl","SARC- Sand Diggers","SARC -I'd Hit That","SARC-Notorious DIG","B2","LPK-Casual Sets","LKP- Bumpn' Uglies","NR  Hit That Thang"," GS-50 Shades of Greystone",null,null,null,"D","SARC- Here for Beer",4,7,null,-46,"D"]
[13,13,"Dan Schaefer","Springdale","SARC","$et for Life","A",2,"SARC- $et for Life","SARC - D Div teams week 2","D1","SARC Unprotected Sets","SARC- Mizfits","SARC- Here for Beer","SARC- Dirt Devils","D2","SARC- Sets on the Beach","SARC- Mojo Risin","GS- El Toro's Revenge","GS- Rhymes with Stupid",null,null,null,"D","SARC- Sets on the Beach",3,8,null,-57,"D"]
[14,1,"Greg Klofenstine","Lakepark","LKP","Pass It Around","A",5,"LKP- Pass It Around",null,null,null,null,null,null,null,null,null,null,null,null,null,null,"D","SARC- Mizfits",2,9,null,-55,"D"]
[15,2,"John Allen","Lakepark","LKP","Will Play for Sets","A",6,"LKP- Will Play for Sets",null,null,"\"A\" Division Teams",null,null,null,null,null,null,null,null,null,null,"D","C","SARC- Dirt Devils",2,9,null,-94,"D"]
[16,3,"Ken Muller","Lakepark","LKP","Bumpn' Uglies","B",22,"LKP- Bumpn' Uglies",null,null,"\"B\" Division Teams",null,null,null,null,null,null,null,null,null,null,"D","C","SARC- Mojo Risin ",1,10,null,-87,"D"]
[17,4,"Dave Radcliffe","Lakepark","LKP","Casual Sets","B",21,"LKP- Casual Sets",null,null,"\"C\"  Division Teams"]
[18,5,"Lawerance Lee","Lakepark","LKP","Air Vectors","A",1,"LKP- Air Vectors",null,null,"\"D\"  Division Teams"]
[19,6,"Jim Perotti","Lakepark","LKP","Block You Like a Hurricane","C",13,"LKP- Block You Like a Hurricane"]
[20,1,"Vinnie Smith","Seven Oaks","SO","Kiss My Ace","A",8,"SO- Kiss My Ace"]
[21,2,"Brian Tobey","Seven Oaks","SO","Team Kona","C",10,"SO- Team Kona","2015 Bracket Slots"]
[22,1,"Jeff Willey","Crabtree","CT","Concrete Feet","C",12,"CT- Concrete Feet",null,null,"SARC - Week 3","SARC - Week 3","SARC - Week 3","SARC - Week 3",null,"LKP - Week 3","LKP - Week 3","GS - Week 3","GS - Week 3"]
[22,1,"Burt Driscoll","Crabtree","CT","Spikological Warfare","A",3,{"$f":"E40& \"- \" & F40","v":"CT- Spikological Warfare"},"LKP - A Div teams week 2","A1","SO- Kiss My Ace","LPK-Air Vectors","SARC- Volleywood","LPK- Pass it Around","A2","LPK-Casual Sets","NR- Six Pack Attack","LPK-WILL Play for Sets"," GS-50 Shades of Greystone A","A TEAMS"]
[24,3,"Thomas Beaulieu","Crabtree","CT","Volley Llamas","C",11,{"$f":"E41& \"- \" & F41","v":"CT- Volley Llamas"},"GS- C Div teams week 2","C1","SARC- $et for Life","SARC- Dirt Devils","SARC- Mojo Risin","SARC- Good Bumps","C2","HG- Swing Rays","LKP- Block You Like a Hurricane","GS- Dirty Sets on Tuesdays","GS- Sand Gators","C Teams"]
[25,1,"Marshall Lamb","Greystone","GS","50 Shades of Greystone","B",24,"GS- 50 Shades of Greystone","SARC - B Div teams week 2","B1","SARC- Raleigh Brawl","SARC-Notorious DIG","LKP- Bumpn' Uglies","SARC- Sand Diggers","B2","NR  Hit That Thang","SARC -I'd Hit That","CT Concrete Feet","GS- Rhymes w Stupid","B TEAMS"]
[26,2,"Joe Cockerham","Greystone","GS","El Toro's Revenge","D",31,"GS- El Toro's Revenge","SARC - D Div teams week 2","D1","SARC- Mizfits","SARC- Sets on the Beach","SARC- Here for Beer","Team Sponsor","D2","SARC Unprotected Sets","SO- Team Kona","GS- El Toro's Revenge","CT- Dangerous When Set","D Teams"]
[27,3,"Greg Wait","Greystone","GS","Rhymes with Stupid","D",32,"GS- Rhymes with Stupid"]
[28,4,"Jeff Owens","Greystone","GS","Setsual Healing","C",16,"GS- Setsual Healing"]
[29,5,"Jeff Sharp","Greystone","GS","Sand Gators","C",15,"GS- Sand Gators"]
[30,1,"Jim White","North Raleigh","NR","Six Pack Attack","A",7,"NR- Six Pack Attack"]
[31,2,"Steve Hamilton","North Raleigh","NR","Hit That Thang","B",23,"NR- Hit That Thang"]
[32,1,"Glen Lucas","Harrington Grove","HG","Swingrays","C",14,"HG- Swingrays"]

{"sheet":"32 team Bracketology","index":8,"n_rows":39,"n_cols":20,"rows_kept":39,"cut":false,"hidden":false,"merged":[]}
["32 TEAM BRACKETOLOGY-  The method to this schedule Madness"]
[]
["Night 1","All at SARC- Play Within Your Bracket"]
[null,"Teams play a round robin with 3 teams in their same Bracket"]
[null," 8 Brackets of 4- 3 games each  "]
["Bracket",null,null,null,null,"Bracket"]
["A1",1,2,3,4,"A2",5,6,7,8,null,"A Division "]
[]
["C1",9,10,11,12,"C2",13,14,15,16,null,"C Division"]
[]
["B1",17,18,19,20,"B2",21,22,23,24,null,"B Division"]
[]
["D1",25,26,27,28,"D2",29,30,31,32,null,"D Division"]
[]
[]
["Night 2","Play Adjoining Bracket-  Bracket VS Bracket-  Both are in the same Division"]
[null,"each team Plays the other 4 teams in the adjoining bracket in the same Row"]
[null,"8 team brackets at 4 locations with 2 courts each"]
[null,"4 games for each team"]
[null,"Bracket",null,null,null,null,"Bracket",null,null,null,null,null,"Best 8 Teams in Row 1"]
["SARC Red","A1",1,2,3,4,"A2",5,6,7,8,null,"Bracket A1 vs A2"]
[]
["LK","C1",9,10,11,12,"C2",13,14,15,16,null,"Bracket C1  vs C2"]
[]
["SARC Blue","B1",17,18,19,20,"B2",21,22,23,24,null,"Bracket B1 vs B2"]
[]
["GS","D1",25,26,27,28,"D2",29,30,31,32,null,"Bracket D1 vs D2"]
[]
[null,null,null,null,null,null,null,null,null,null,null,null,null,null,null,null,null,null,null," GS-50 Shades of Greystone"]
["Night 3","Vertical Brackets (Cross section of Divisions)"]
[null,"Each team Plays the 3 teams within their column plus one team from the adjacent column",null,null,null,null,null,null,null,null,"(2 games- A/B matchups)"]
[null,"8 team brackets at 4 locations with 2 courts each",null,null,null,null,null,null,null,null,"(2 games- C/D matchups)"]
[null,"4 games for each team"]
[null,"2 columns of 4 teams play at each location"]
[]
["SARC Red",1,2,"SARC Blue",3,4,"LK",5,6,"GS",7,8]
[null,9,10,null,11,12,null,13,14,null,15,16]
[null,17,18,null,19,20,null,21,22,null,23,24]
[null,25,26,null,27,28,null,29,30,null,31,32]

{"sheet":"# of games per night","index":9,"n_rows":50,"n_cols":18,"rows_kept":50,"cut":false,"hidden":false,"merged":[]}
["Night 1","ALL at Springdale",null,null,null,null,null,null,null,null,"Nights 2 and 3",null,"  - 3 HOST CLUBS (SARC, LKP, and GS)"]
["# games","time","Courts",null,null,null,null,null,null,null,null,null,"8 courts at 4 Sites w/ SARC counting as 2 Sites"]
[1,"06:00:00","court 1",null,"32 teams",null,null,null,null,null,null,null,null,"SARC Red and SARC Bluelue to be one perm court and one temp sand court"]
[2,null,"court 2",null,"3 games each",null,null,null,null,null,1,6,"court 1"]
[3,null,"court 3",null,"(32*3)/2",null,null,null,null,null,2,null,"court 2",null,"SARC Red","SARC Blue","LPK","GS"]
[4,null,"court 4",null,{"$f":"(32*3)/2","v":48},null,null,"# of games",null,null,3,"06:30:00","court 1",null,"2 courts","2 courts","2 courts","2 courts"]
[5,null,"court 5",null,null,null,null,null,null,null,4,null,"court 2",null,"8 teams","8 teams","8 teams","8 teams"]
[6,null,"court 6",null,null,null,null,null,null,null,5,7,"court 1"]
[7,"06:30:00","court 1",null,"4 total Sand courts at SARC w/ 2 temp Sand",null,null,null,null,null,6,null,"court 2",null,"Each Site- 8 teams"]
[8,null,"court 2",null,"Courts 3 and 4 are temporary sand courts on the soccer field",null,null,null,null,null,7,"07:30:00","court 1",null,"4 games each",null,"# of Games"]
[9,null,"court 3",null,"12 games on grass (courts 5 and 6)- no lights",null,null,null,null,null,8,null,"court 2",null,"(8*4)/2",null,"games per Site"]
[10,null,"court 4",null,"24 teams to play on grass",null,null,null,null,null,9,8,"court 1",null,{"$f":"(8*4)/2","v":16}]
[11,null,"court 5",null,"Best 8 teams only play sand",null,null,null,null,null,10,null,"court 2",null,"Occuring at 4 Sites"]
[12,null,"court 6",null,null,null,null,null,null,null,11,"08:30:00","court 1"]
[13,"07:00:00","court 1",null,"Games scheduled b/t 6 - 10:30 PM",null,null,null,null,null,12,null,"court 2",null,"Games scheduled b/t 6 PM - 10"]
[14,null,"court 2",null,null,null,null,null,null,null,13,9,"court 1"]
[15,null,"court 3",null,null,null,null,null,null,null,14,null,"court 2"]
[16,null,"court 4",null,null,null,null,null,null,null,15,"09:30:00","court 1"]
[17,null,"court 5",null,null,null,null,null,null,null,16,null,"court 2"]
[18,null,"court 6"]
[19,"07:30:00","court 1",null,null,null,null,null,null,"n "]
[20,null,"court 2"]
[21,null,"court 3"]
[22,null,"court 4"]
[23,null,"court 5"]
[24,null,"court 6"]
[25,"08:00:00","court 1"]
[26,null,"court 2"]
[27,null,"court 3"]
[28,null,"court 4"]
[29,null,"court 5"]
[30,null,"court 6"]
[31,"08:30:00","court 1"]
[32,null,"court 2"]
[33,null,"court 3"]
[34,null,"court 4"]
[35,null,"court 5",null,"if dark, can opt to play at 10:30"]
[36,null,"court 6",null,"if dark, can opt to play at 10:30"]
[37,"09:00:00","court 1"]
[38,null,"court 2"]
[39,null,"court 3"]
[40,null,"court 4"]
[41,"09:30:00","court 1"]
[42,null,"court 2"]
[43,null,"court 3"]
[44,null,"court 4"]
[45,"10:00:00","court 1"]
[46,null,"court 2"]
[47,null,"court 3"]
[48,null,"court 4"]

{"sheet":"Team # Match ups","index":10,"n_rows":51,"n_cols":33,"rows_kept":51,"cut":false,"hidden":false,"merged":[]}
["Night 1",null,null,null,null,null,null,null,null,null,null,null,"Night 2",null,null,null,null,null,null,null,null,null,null,null,"Night 3"]
[]
["# games","Bracket","Team  VS","Team",null,null,null,null,null,null,null,null,"# games","Bracket","Team  VS","Team",null,null,"# games","Bracket","Team  VS","Team",null,null,"# games","Bracket","Team  VS","Team",null,"# games","Bracket","Team  VS","Team"]
[1,"A",1,2,null,null,null,null,null,null,null,null,1,"SARC Red",1,5,null,null,1,"SARC Blue",17,21,null,null,1,"SARC Red",1,9,null,1,"LPK",5,13]
[2,"A",1,3,null,null,null,null,null,null,null,null,2,"SARC Red",1,6,null,null,2,"SARC Blue",17,22,null,null,2,"SARC Red",1,17,null,2,"LPK",5,21]
[3,"A",4,1,null,null,null,null,null,null,null,null,3,"SARC Red",7,1,null,null,3,"SARC Blue",23,17,null,null,3,"SARC Red",25,1,null,3,"LPK",29,5]
[4,"A",2,3,null,null,null,null,null,null,null,null,4,"SARC Red",8,1,null,null,4,"SARC Blue",24,17,null,null,4,"SARC Red",17,9,null,4,"LPK",21,13]
[5,"A",2,4,null,null,null,null,null,null,null,null,5,"SARC Red",2,5,null,null,5,"SARC Blue",18,21,null,null,5,"SARC Red",9,25,null,5,"LPK",13,29]
[6,"A",3,4,null,null,null,null,null,null,null,null,6,"SARC Red",2,6,null,null,6,"SARC Blue",18,22,null,null,6,"SARC Red",17,25,null,6,"LPK",21,29]
[7,"B",5,6,null,null,null,null,null,null,null,null,7,"SARC Red",7,2,null,null,7,"SARC Blue",23,18,null,null,7,"SARC Red",10,1,null,7,"LPK",14,5]
[8,"B",5,7,null,null,null,null,null,null,null,null,8,"SARC Red",8,2,null,null,8,"SARC Blue",24,18,null,null,8,"SARC Red",9,18,null,8,"LPK",13,22]
[9,"B",8,5,null,null,null,null,null,null,null,null,9,"SARC Red",5,3,null,null,9,"SARC Blue",21,19,null,null,9,"SARC Red",26,17,null,9,"LPK",30,21]
[10,"B",6,7,null,null,null,null,null,null,null,null,10,"SARC Red",6,3,null,null,10,"SARC Blue",22,19,null,null,10,"SARC Red",25,2,null,10,"LPK",29,6]
[11,"B",6,8,null,null,null,null,null,null,null,null,11,"SARC Red",3,7,null,null,11,"SARC Blue",19,23,null,null,11,"SARC Red",2,10,null,11,"LPK",6,14]
[12,"B",7,8,null,null,null,null,null,null,null,null,12,"SARC Red",3,8,null,null,12,"SARC Blue",19,24,null,null,12,"SARC Red",2,18,null,12,"LPK",6,22]
[13,"C",9,10,null,null,null,null,null,null,null,null,13,"SARC Red",5,4,null,null,13,"SARC Blue",21,20,null,null,13,"SARC Red",26,2,null,13,"LPK",30,6]
[14,"C",9,11,null,null,null,null,null,null,null,null,14,"SARC Red",6,4,null,null,14,"SARC Blue",22,20,null,null,14,"SARC Red",18,10,null,14,"LPK",22,14]
[15,"C",12,9,null,null,null,null,null,null,null,null,15,"SARC Red",4,7,null,null,15,"SARC Blue",20,23,null,null,15,"SARC Red",10,26,null,15,"LPK",14,30]
[16,"C",10,11,null,null,null,null,null,null,null,null,16,"SARC Red",4,8,null,null,16,"SARC Blue",20,24,null,null,16,"SARC Red",18,26,null,16,"LPK",22,30]
[17,"C",10,12]
[18,"C",11,12]
[19,"D",13,14,null,null,null,null,null,null,null,null,1,"LPK",9,13,null,null,1,"GS",25,29,null,null,1,"SARC Blue",3,11,null,1,"GS",7,15]
[20,"D",13,15,null,null,null,null,null,null,null,null,2,"LPK",9,14,null,null,2,"GS",25,30,null,null,2,"SARC Blue",3,19,null,2,"GS",7,23]
[21,"D",16,13,null,null,null,null,null,null,null,null,3,"LPK",15,9,null,null,3,"GS",31,25,null,null,3,"SARC Blue",27,3,null,3,"GS",31,7]
[22,"D",14,15,null,null,null,null,null,null,null,null,4,"LPK",16,9,null,null,4,"GS",32,25,null,null,4,"SARC Blue",19,11,null,4,"GS",23,15]
[23,"D",14,16,null,null,null,null,null,null,null,null,5,"LPK",10,13,null,null,5,"GS",26,29,null,null,5,"SARC Blue",11,27,null,5,"GS",15,31]
[24,"D",15,16,null,null,null,null,null,null,null,null,6,"LPK",10,14,null,null,6,"GS",26,30,null,null,6,"SARC Blue",19,27,null,6,"GS",23,31]
[25,"E",17,18,null,null,null,null,null,null,null,null,7,"LPK",15,10,null,null,7,"GS",31,26,null,null,7,"SARC Blue",12,3,null,7,"GS",16,7]
[26,"E",17,19,null,null,null,null,null,null,null,null,8,"LPK",16,10,null,null,8,"GS",32,26,null,null,8,"SARC Blue",11,20,null,8,"GS",15,24]
[27,"E",20,17,null,null,null,null,null,null,null,null,9,"LPK",13,11,null,null,9,"GS",29,27,null,null,9,"SARC Blue",28,19,null,9,"GS",32,23]
[28,"E",18,19,null,null,null,null,null,null,null,null,10,"LPK",14,11,null,null,10,"GS",30,27,null,null,10,"SARC Blue",27,4,null,10,"GS",31,8]
[29,"E",18,20,null,null,null,null,null,null,null,null,11,"LPK",11,15,null,null,11,"GS",27,31,null,null,11,"SARC Blue",4,12,null,11,"GS",8,16]
[30,"E",19,20,null,null,null,null,null,null,null,null,12,"LPK",11,16,null,null,12,"GS",27,32,null,null,12,"SARC Blue",4,20,null,12,"GS",8,24]
[31,"F",21,22,null,null,null,null,null,null,null,null,13,"LPK",13,12,null,null,13,"GS",29,28,null,null,13,"SARC Blue",28,4,null,13,"GS",32,8]
[32,"F",21,23,null,null,null,null,null,null,null,null,14,"LPK",14,12,null,null,14,"GS",30,28,null,null,14,"SARC Blue",20,12,null,14,"GS",24,16]
[33,"F",24,21,null,null,null,null,null,null,null,null,15,"LPK",12,15,null,null,15,"GS",28,31,null,null,15,"SARC Blue",12,28,null,15,"GS",16,32]
[34,"F",22,23,null,null,null,null,null,null,null,null,16,"LPK",12,16,null,null,16,"GS",28,32,null,null,16,"SARC Blue",20,28,null,16,"GS",24,32]
[35,"F",22,24]
[36,"F",23,24]
[37,"G",25,26]
[38,"G",25,27]
[39,"G",28,25]
[40,"G",26,27]
[41,"G",26,28]
[42,"G",27,28]
[43,"H",29,30]
[44,"H",29,31]
[45,"H",32,29]
[46,"H",30,31]
[47,"H",30,32]
[48,"H",31,32]